Workbook

Sheet PO-PLE
A1: Nivel | B1: N° Macrosserviço / Serviço | C1: Fonte | D1: Código | E1: Descrição Macrosserviço / Serviço | F1: Qtd. (valor calculado) | G1: Und. | H1: Custo Unitário Referência | I1: Custo Unitário | J1: BDI | K1: Preço Unitário (valor calculado) | L1: Preço Total (valor calculado) | M1: Observação | N1: N° Evento | O1: Evento | P1: N° Frente de Obra | Q1: Frente de Obra | R1: Qtd. | S1: Valor
A2: Macrosserviço | B2: 1 | E2: ADMINISTRAÇÃO DE OBRA | L2: =ROUND(L3,2) -> 99658.53
A3: Serviço | B3: 1.1 | C3: Composição | D3: 946158-001 | E3: ADMINISTRAÇÃO DE OBRA | F3: =R3+R4+R5+R6+R7+R8+R9+R10+R11+R12+R13+R14 -> 1.00 | G3: UN | H3: 80369.76 | I3: 80369.76 | J3: 24.00% | K3: =ROUND(I3,2)+(ROUND(I3,2)*J3) -> 99658.5024 | L3: =ROUND(S3,2)+ROUND(S4,2)+ROUND(S5,2)+ROUND(S6,2)+ROUND(S7,2)+ROUND(S8,2)+ROUND(S9,2)+ROUND(S10,2)+ROUND(S11,2)+ROUND(S12,2)+ROUND(S13,2)+ROUND(S14,2) -> 99658.53 | N3: 1 | O3: ADMINISTRAÇÃO LOCAL | P3: 1 | Q3: SERVIÇOS PRELIMINARES | R3: 0.02 | S3: =ROUND(K3,2)*R3 -> 1993.17
P4: 2 | Q4: EDIFICAÇÃO | R4: 0.09 | S4: =ROUND(K3,2)*R4 -> 8969.265
P5: 3 | Q5: IMPLANTAÇÃO | R5: 0.12 | S5: =ROUND(K3,2)*R5 -> 11959.02
P6: 4 | Q6: FUNDAÇÕES | R6: 0.04 | S6: =ROUND(K3,2)*R6 -> 3986.34
P7: 5 | Q7: VIGAS BALDRAME | R7: 0.11 | S7: =ROUND(K3,2)*R7 -> 10962.435
P8: 6 | Q8: PILARES | R8: 0.09 | S8: =ROUND(K3,2)*R8 -> 8969.265
P9: 7 | Q9: VIGAS | R9: 0.16 | S9: =ROUND(K3,2)*R9 -> 15945.36
P10: 8 | Q10: LAJES | R10: 0.14 | S10: =ROUND(K3,2)*R10 -> 13952.19
P11: 9 | Q11: REVESTIMENTOS INTERNOS | R11: 0.06 | S11: =ROUND(K3,2)*R11 -> 5979.51
P12: 10 | Q12: REVESTIMENTOS EXTERNOS | R12: 0.07 | S12: =ROUND(K3,2)*R12 -> 6976.095
P13: 11 | Q13: PINTURA INTERNA | R13: 0.03 | S13: =ROUND(K3,2)*R13 -> 2989.755
P14: 12 | Q14: PINTURA EXTERNA | R14: 0.07 | S14: =ROUND(K3,2)*R14 -> 6976.095
A15: Macrosserviço | B15: 2 | E15: SERVIÇOS PRELIMINARES | L15: =ROUND(L16,2)+ROUND(L17,2)+ROUND(L18,2) -> 57669.71
A16: Serviço | B16: 2.1 | C16: Composição | D16: 946158-002 | E16: CANTEIRO DE OBRA | F16: =R16 -> 1.00 | G16: UN | H16: 11078.04 | I16: 11078.04 | J16: 24.00% | K16: =ROUND(I16,2)+(ROUND(I16,2)*J16) -> 13736.7696 | L16: =ROUND(S16,2) -> 13736.77 | N16: 2 | O16: CANTEIRO DE OBRA | P16: 1 | Q16: SERVIÇOS PRELIMINARES | R16: 1.00 | S16: =ROUND(K16,2)*R16 -> 13736.77
A17: Serviço | B17: 2.2 | C17: Composição | D17: 946158-003 | E17: MOVIMENTO DE TERRA | F17: =R17 -> 1.00 | G17: UN | H17: 6029.79 | I17: 6029.79 | J17: 24.00% | K17: =ROUND(I17,2)+(ROUND(I17,2)*J17) -> 7476.9396 | L17: =ROUND(S17,2) -> 7476.94 | N17: 3 | O17: MOVIMENTAÇÃO DE SOLOS | P17: 1 | Q17: SERVIÇOS PRELIMINARES | R17: 1.00 | S17: =ROUND(K17,2)*R17 -> 7476.94
A18: Serviço | B18: 2.3 | C18: Composição | D18: CONTAINER | E18: LOCAÇÃO DE CONTAINERS PARA CANTEIRO DE OBRA | F18: =R18+R19+R20+R21+R22+R23+R24+R25+R26+R27+R28+R29 -> 1.00 | G18: UN | H18: 29400 | I18: 29400 | J18: 24.00% | K18: =ROUND(I18,2)+(ROUND(I18,2)*J18) -> 36456 | L18: =ROUND(S18,2)+ROUND(S19,2)+ROUND(S20,2)+ROUND(S21,2)+ROUND(S22,2)+ROUND(S23,2)+ROUND(S24,2)+ROUND(S25,2)+ROUND(S26,2)+ROUND(S27,2)+ROUND(S28,2)+ROUND(S29,2) -> 36456 | N18: 2 | O18: CANTEIRO DE OBRA | P18: 1 | Q18: SERVIÇOS PRELIMINARES | R18: 0.05 | S18: =ROUND(K18,2)*R18 -> 1822.8
P19: 2 | Q19: EDIFICAÇÃO | R19: 0.09 | S19: =ROUND(K18,2)*R19 -> 3281.04
P20: 3 | Q20: IMPLANTAÇÃO | R20: 0.12 | S20: =ROUND(K18,2)*R20 -> 4374.72
P21: 4 | Q21: FUNDAÇÕES | R21: 0.04 | S21: =ROUND(K18,2)*R21 -> 1458.24
P22: 5 | Q22: VIGAS BALDRAME | R22: 0.11 | S22: =ROUND(K18,2)*R22 -> 4010.16
P23: 6 | Q23: PILARES | R23: 0.09 | S23: =ROUND(K18,2)*R23 -> 3281.04
P24: 7 | Q24: VIGAS | R24: 0.16 | S24: =ROUND(K18,2)*R24 -> 5832.96
P25: 8 | Q25: LAJES | R25: 0.14 | S25: =ROUND(K18,2)*R25 -> 5103.84
P26: 9 | Q26: REVESTIMENTOS INTERNOS | R26: 0.06 | S26: =ROUND(K18,2)*R26 -> 2187.36
P27: 10 | Q27: REVESTIMENTOS EXTERNOS | R27: 0.07 | S27: =ROUND(K18,2)*R27 -> 2551.92
P28: 11 | Q28: PINTURA INTERNA | R28: 0.03 | S28: =ROUND(K18,2)*R28 -> 1093.68
P29: 12 | Q29: PINTURA EXTERNA | R29: 0.04 | S29: =ROUND(K18,2)*R29 -> 1458.24
A30: Macrosserviço | B30: 3 | E30: INFRA ESTRUTURA | L30: =ROUND(L31,2)+ROUND(L32,2)+ROUND(L33,2)+ROUND(L34,2)+ROUND(L35,2)+ROUND(L36,2)+ROUND(L37,2)+ROUND(L38,2)+ROUND(L39,2)+ROUND(L40,2)+ROUND(L41,2)+ROUND(L42,2)+ROUND(L43,2)+ROUND(L44,2)+ROUND(L45,2)+ROUND(L46,2)+ROUND(L47,2)+ROUND(L48,2)+ROUND(L49,2)+ROUND(L50,2)+ROUND(L51,2)+ROUND(L52,2)+ROUND(L53,2)+ROUND(L54,2)+ROUND(L55,2)+ROUND(L56,2) -> 244068.44
A31: Serviço | B31: 3.1 | C31: SINAPI | D31: 100897 | E31: ESTACA ESCAVADA MECANICAMENTE, SEM FLUIDO ESTABILIZANTE, COM 40CM DE DIÂMETRO, CONCRETO LANÇADO POR CAMINHÃO BETONEIRA (EXCLUSIVE MOBILIZAÇÃO E DESMOBILIZAÇÃO). AF_01/2020 | F31: =R31 -> 280.00 | G31: M | H31: 149.18 | I31: 149.18 | J31: 24.00% | K31: =ROUND(I31,2)+(ROUND(I31,2)*J31) -> 184.9832 | L31: =ROUND(S31,2) -> 51794.4 | N31: 4 | O31: ESTACAS | P31: 4 | Q31: FUNDAÇÕES | R31: 280.00 | S31: =ROUND(K31,2)*R31 -> 51794.4
A32: Serviço | B32: 3.2 | C32: SINAPI | D32: 96521 | E32: ESCAVAÇÃO MECANIZADA PARA BLOCO DE COROAMENTO OU SAPATA COM RETROESCAVADEIRA (INCLUINDO ESCAVAÇÃO PARA COLOCAÇÃO DE FÔRMAS). AF_01/2024 | F32: =R32 -> 48.04 | G32: M3 | H32: 39.21 | I32: 39.21 | J32: 24.00% | K32: =ROUND(I32,2)+(ROUND(I32,2)*J32) -> 48.6204 | L32: =ROUND(S32,2) -> 2335.7 | N32: 3 | O32: MOVIMENTAÇÃO DE SOLOS | P32: 4 | Q32: FUNDAÇÕES | R32: 48.04 | S32: =ROUND(K32,2)*R32 -> 2335.7048
A33: Serviço | B33: 3.3 | C33: SINAPI | D33: 95601 | E33: ARRASAMENTO MECANICO DE ESTACA DE CONCRETO ARMADO, DIAMETROS DE ATÉ 40 CM. AF_05/2021 | F33: =R33 -> 56.00 | G33: UN | H33: 15.72 | I33: 15.72 | J33: 24.00% | K33: =ROUND(I33,2)+(ROUND(I33,2)*J33) -> 19.4928 | L33: =ROUND(S33,2) -> 1091.44 | N33: 3 | O33: MOVIMENTAÇÃO DE SOLOS | P33: 4 | Q33: FUNDAÇÕES | R33: 56.00 | S33: =ROUND(K33,2)*R33 -> 1091.44
A34: Serviço | B34: 3.4 | C34: Composição | D34: S-79483 | E34: SINAPI - 03/2016 - 79483 - APILOAMENTO COM MACO DE 30KG | F34: =R34 -> 30.24 | G34: M2 | H34: 31.76 | I34: 31.76 | J34: 24.00% | K34: =ROUND(I34,2)+(ROUND(I34,2)*J34) -> 39.3824 | L34: =ROUND(S34,2) -> 1190.85 | N34: 3 | O34: MOVIMENTAÇÃO DE SOLOS | P34: 4 | Q34: FUNDAÇÕES | R34: 30.24 | S34: =ROUND(K34,2)*R34 -> 1190.8512
A35: Serviço | B35: 3.5 | C35: SINAPI | D35: 96619 | E35: LASTRO DE CONCRETO MAGRO, APLICADO EM BLOCOS DE COROAMENTO OU SAPATAS, ESPESSURA DE 5 CM. AF_01/2024 | F35: =R35 -> 30.24 | G35: M2 | H35: 44.86 | I35: 44.86 | J35: 24.00% | K35: =ROUND(I35,2)+(ROUND(I35,2)*J35) -> 55.6264 | L35: =ROUND(S35,2) -> 1682.25 | N35: 8 | O35: CONCRETAGENS | P35: 4 | Q35: FUNDAÇÕES | R35: 30.24 | S35: =ROUND(K35,2)*R35 -> 1682.2512
A36: Serviço | B36: 3.6 | C36: SINAPI | D36: 96534 | E36: FABRICAÇÃO, MONTAGEM E DESMONTAGEM DE FÔRMA PARA BLOCO DE COROAMENTO, EM MADEIRA SERRADA, E=25 MM, 4 UTILIZAÇÕES. AF_01/2024 | F36: =R36 -> 107.52 | G36: M2 | H36: 83.82 | I36: 83.82 | J36: 24.00% | K36: =ROUND(I36,2)+(ROUND(I36,2)*J36) -> 103.9368 | L36: =ROUND(S36,2) -> 11175.63 | N36: 7 | O36: FÔRMAS | P36: 4 | Q36: FUNDAÇÕES | R36: 107.52 | S36: =ROUND(K36,2)*R36 -> 11175.6288
A37: Serviço | B37: 3.7 | C37: SINAPI | D37: 96543 | E37: ARMAÇÃO DE BLOCO UTILIZANDO AÇO CA-60 DE 5 MM - MONTAGEM. AF_01/2024 | F37: =R37 -> 498.00 | G37: KG | H37: 19.75 | I37: 19.75 | J37: 24.00% | K37: =ROUND(I37,2)+(ROUND(I37,2)*J37) -> 24.49 | L37: =ROUND(S37,2) -> 12196.02 | N37: 6 | O37: ARMAÇÕES | P37: 4 | Q37: FUNDAÇÕES | R37: 498.00 | S37: =ROUND(K37,2)*R37 -> 12196.02
A38: Serviço | B38: 3.8 | C38: SINAPI | D38: 96544 | E38: ARMAÇÃO DE BLOCO UTILIZANDO AÇO CA-50 DE 6,3 MM - MONTAGEM. AF_01/2024 | F38: =R38 -> 95.00 | G38: KG | H38: 17.87 | I38: 17.87 | J38: 24.00% | K38: =ROUND(I38,2)+(ROUND(I38,2)*J38) -> 22.1588 | L38: =ROUND(S38,2) -> 2105.2 | N38: 6 | O38: ARMAÇÕES | P38: 4 | Q38: FUNDAÇÕES | R38: 95.00 | S38: =ROUND(K38,2)*R38 -> 2105.2
A39: Serviço | B39: 3.9 | C39: SINAPI | D39: 96545 | E39: ARMAÇÃO DE BLOCO UTILIZANDO AÇO CA-50 DE 8 MM - MONTAGEM. AF_01/2024 | F39: =R39 -> 36.00 | G39: KG | H39: 16.18 | I39: 16.18 | J39: 24.00% | K39: =ROUND(I39,2)+(ROUND(I39,2)*J39) -> 20.0632 | L39: =ROUND(S39,2) -> 722.16 | N39: 6 | O39: ARMAÇÕES | P39: 4 | Q39: FUNDAÇÕES | R39: 36.00 | S39: =ROUND(K39,2)*R39 -> 722.16
A40: Serviço | B40: 3.10 | C40: SINAPI | D40: 96546 | E40: ARMAÇÃO DE BLOCO UTILIZANDO AÇO CA-50 DE 10 MM - MONTAGEM. AF_01/2024 | F40: =R40 -> 1,795.00 | G40: KG | H40: 14.19 | I40: 14.19 | J40: 24.00% | K40: =ROUND(I40,2)+(ROUND(I40,2)*J40) -> 17.5956 | L40: =ROUND(S40,2) -> 31592 | N40: 6 | O40: ARMAÇÕES | P40: 4 | Q40: FUNDAÇÕES | R40: 1,795.00 | S40: =ROUND(K40,2)*R40 -> 31592
A41: Serviço | B41: 3.11 | C41: SINAPI | D41: 96557 | E41: CONCRETAGEM DE BLOCO DE COROAMENTO OU VIGA BALDRAME, FCK 30 MPA, COM USO DE BOMBA - LANÇAMENTO, ADENSAMENTO E ACABAMENTO. AF_01/2024 | F41: =R41 -> 21.16 | G41: M3 | H41: 992.57 | I41: 992.57 | J41: 24.00% | K41: =ROUND(I41,2)+(ROUND(I41,2)*J41) -> 1230.7868 | L41: =ROUND(S41,2) -> 26043.52 | N41: 8 | O41: CONCRETAGENS | P41: 4 | Q41: FUNDAÇÕES | R41: 21.16 | S41: =ROUND(K41,2)*R41 -> 26043.5164
A42: Serviço | B42: 3.12 | C42: SINAPI | D42: 93382 | E42: REATERRO MANUAL DE VALAS, COM COMPACTADOR DE SOLOS DE PERCUSSÃO. AF_08/2023 | F42: =R42 -> 26.88 | G42: M3 | H42: 24.52 | I42: 24.52 | J42: 24.00% | K42: =ROUND(I42,2)+(ROUND(I42,2)*J42) -> 30.4048 | L42: =ROUND(S42,2) -> 817.15 | N42: 3 | O42: MOVIMENTAÇÃO DE SOLOS | P42: 4 | Q42: FUNDAÇÕES | R42: 26.88 | S42: =ROUND(K42,2)*R42 -> 817.152
A43: Serviço | B43: 3.13 | C43: SINAPI | D43: 96525 | E43: ESCAVAÇÃO MECANIZADA PARA VIGA BALDRAME OU SAPATA CORRIDA COM MINI-ESCAVADEIRA (INCLUINDO ESCAVAÇÃO PARA COLOCAÇÃO DE FÔRMAS). AF_01/2024 | F43: =R43 -> 58.34 | G43: M3 | H43: 52.41 | I43: 52.41 | J43: 24.00% | K43: =ROUND(I43,2)+(ROUND(I43,2)*J43) -> 64.9884 | L43: =ROUND(S43,2) -> 3791.52 | N43: 3 | O43: MOVIMENTAÇÃO DE SOLOS | P43: 5 | Q43: VIGAS BALDRAME | R43: 58.34 | S43: =ROUND(K43,2)*R43 -> 3791.5166
A44: Serviço | B44: 3.14 | C44: Composição | D44: S-79483 | E44: SINAPI - 03/2016 - 79483 - APILOAMENTO COM MACO DE 30KG | F44: =R44 -> 145.86 | G44: M2 | H44: 31.76 | I44: 31.76 | J44: 24.00% | K44: =ROUND(I44,2)+(ROUND(I44,2)*J44) -> 39.3824 | L44: =ROUND(S44,2) -> 5743.97 | N44: 3 | O44: MOVIMENTAÇÃO DE SOLOS | P44: 5 | Q44: VIGAS BALDRAME | R44: 145.86 | S44: =ROUND(K44,2)*R44 -> 5743.9668
A45: Serviço | B45: 3.15 | C45: SINAPI | D45: 96619 | E45: LASTRO DE CONCRETO MAGRO, APLICADO EM BLOCOS DE COROAMENTO OU SAPATAS, ESPESSURA DE 5 CM. AF_01/2024 | F45: =R45 -> 145.86 | G45: M2 | H45: 44.86 | I45: 44.86 | J45: 24.00% | K45: =ROUND(I45,2)+(ROUND(I45,2)*J45) -> 55.6264 | L45: =ROUND(S45,2) -> 8114.19 | N45: 8 | O45: CONCRETAGENS | P45: 5 | Q45: VIGAS BALDRAME | R45: 145.86 | S45: =ROUND(K45,2)*R45 -> 8114.1918
A46: Serviço | B46: 3.16 | C46: SINAPI | D46: 96536 | E46: FABRICAÇÃO, MONTAGEM E DESMONTAGEM DE FÔRMA PARA VIGA BALDRAME, EM MADEIRA SERRADA, E=25 MM, 4 UTILIZAÇÕES. AF_01/2024 | F46: =R46 -> 275.03 | G46: M2 | H46: 73.43 | I46: 73.43 | J46: 24.00% | K46: =ROUND(I46,2)+(ROUND(I46,2)*J46) -> 91.0532 | L46: =ROUND(S46,2) -> 25041.48 | N46: 7 | O46: FÔRMAS | P46: 5 | Q46: VIGAS BALDRAME | R46: 275.03 | S46: =ROUND(K46,2)*R46 -> 25041.4815
A47: Serviço | B47: 3.17 | C47: SINAPI | D47: 104916 | E47: ARMAÇÃO DE SAPATA ISOLADA, VIGA BALDRAME E SAPATA CORRIDA UTILIZANDO AÇO CA-60 DE 5 MM - MONTAGEM. AF_01/2024 | F47: =R47 -> 275.00 | G47: KG | H47: 16.69 | I47: 16.69 | J47: 24.00% | K47: =ROUND(I47,2)+(ROUND(I47,2)*J47) -> 20.6956 | L47: =ROUND(S47,2) -> 5692.5 | N47: 6 | O47: ARMAÇÕES | P47: 5 | Q47: VIGAS BALDRAME | R47: 275.00 | S47: =ROUND(K47,2)*R47 -> 5692.5
A48: Serviço | B48: 3.18 | C48: SINAPI | D48: 104917 | E48: ARMAÇÃO DE SAPATA ISOLADA, VIGA BALDRAME E SAPATA CORRIDA UTILIZANDO AÇO CA-50 DE 6,3 MM - MONTAGEM. AF_01/2024 | F48: =R48 -> 6.00 | G48: KG | H48: 15.57 | I48: 15.57 | J48: 24.00% | K48: =ROUND(I48,2)+(ROUND(I48,2)*J48) -> 19.3068 | L48: =ROUND(S48,2) -> 115.86 | N48: 6 | O48: ARMAÇÕES | P48: 5 | Q48: VIGAS BALDRAME | R48: 6.00 | S48: =ROUND(K48,2)*R48 -> 115.86
A49: Serviço | B49: 3.19 | C49: SINAPI | D49: 104918 | E49: ARMAÇÃO DE SAPATA ISOLADA, VIGA BALDRAME E SAPATA CORRIDA UTILIZANDO AÇO CA-50 DE 8 MM - MONTAGEM. AF_01/2024 | F49: =R49 -> 186.00 | G49: KG | H49: 14.5 | I49: 14.5 | J49: 24.00% | K49: =ROUND(I49,2)+(ROUND(I49,2)*J49) -> 17.98 | L49: =ROUND(S49,2) -> 3344.28 | N49: 6 | O49: ARMAÇÕES | P49: 5 | Q49: VIGAS BALDRAME | R49: 186.00 | S49: =ROUND(K49,2)*R49 -> 3344.28
A50: Serviço | B50: 3.20 | C50: SINAPI | D50: 104919 | E50: ARMAÇÃO DE SAPATA ISOLADA, VIGA BALDRAME E SAPATA CORRIDA UTILIZANDO AÇO CA-50 DE 10 MM - MONTAGEM. AF_01/2024 | F50: =R50 -> 480.00 | G50: KG | H50: 12.96 | I50: 12.96 | J50: 24.00% | K50: =ROUND(I50,2)+(ROUND(I50,2)*J50) -> 16.0704 | L50: =ROUND(S50,2) -> 7713.6 | N50: 6 | O50: ARMAÇÕES | P50: 5 | Q50: VIGAS BALDRAME | R50: 480.00 | S50: =ROUND(K50,2)*R50 -> 7713.6
A51: Serviço | B51: 3.21 | C51: SINAPI | D51: 104920 | E51: ARMAÇÃO DE BLOCO, SAPATA ISOLADA, VIGA BALDRAME E SAPATA CORRIDA UTILIZANDO AÇO CA-50 DE 12,5 MM - MONTAGEM. AF_01/2024 | F51: =R51 -> 56.00 | G51: KG | H51: 10.99 | I51: 10.99 | J51: 24.00% | K51: =ROUND(I51,2)+(ROUND(I51,2)*J51) -> 13.6276 | L51: =ROUND(S51,2) -> 763.28 | N51: 6 | O51: ARMAÇÕES | P51: 5 | Q51: VIGAS BALDRAME | R51: 56.00 | S51: =ROUND(K51,2)*R51 -> 763.28
A52: Serviço | B52: 3.22 | C52: SINAPI | D52: 104921 | E52: ARMAÇÃO DE BLOCO, SAPATA ISOLADA, VIGA BALDRAME E SAPATA CORRIDA UTILIZANDO AÇO CA-50 DE 16 MM - MONTAGEM. AF_01/2024 | F52: =R52 -> 208.00 | G52: KG | H52: 10.39 | I52: 10.39 | J52: 24.00% | K52: =ROUND(I52,2)+(ROUND(I52,2)*J52) -> 12.8836 | L52: =ROUND(S52,2) -> 2679.04 | N52: 6 | O52: ARMAÇÕES | P52: 5 | Q52: VIGAS BALDRAME | R52: 208.00 | S52: =ROUND(K52,2)*R52 -> 2679.04
A53: Serviço | B53: 3.23 | C53: SINAPI | D53: 104922 | E53: ARMAÇÃO DE BLOCO, SAPATA ISOLADA E SAPATA CORRIDA UTILIZANDO AÇO CA-50 DE 20 MM - MONTAGEM. AF_01/2024 | F53: =R53 -> 47.00 | G53: KG | H53: 11.47 | I53: 11.47 | J53: 24.00% | K53: =ROUND(I53,2)+(ROUND(I53,2)*J53) -> 14.2228 | L53: =ROUND(S53,2) -> 668.34 | N53: 6 | O53: ARMAÇÕES | P53: 5 | Q53: VIGAS BALDRAME | R53: 47.00 | S53: =ROUND(K53,2)*R53 -> 668.34
A54: Serviço | B54: 3.24 | C54: SINAPI | D54: 96557 | E54: CONCRETAGEM DE BLOCO DE COROAMENTO OU VIGA BALDRAME, FCK 30 MPA, COM USO DE BOMBA - LANÇAMENTO, ADENSAMENTO E ACABAMENTO. AF_01/2024 | F54: =R54 -> 18.79 | G54: M3 | H54: 992.57 | I54: 992.57 | J54: 24.00% | K54: =ROUND(I54,2)+(ROUND(I54,2)*J54) -> 1230.7868 | L54: =ROUND(S54,2) -> 23126.54 | N54: 8 | O54: CONCRETAGENS | P54: 5 | Q54: VIGAS BALDRAME | R54: 18.79 | S54: =ROUND(K54,2)*R54 -> 23126.5441
A55: Serviço | B55: 3.25 | C55: SINAPI | D55: 98557 | E55: IMPERMEABILIZAÇÃO DE SUPERFÍCIE COM EMULSÃO ASFÁLTICA, 2 DEMÃOS. AF_09/2023 | F55: =R55 -> 275.03 | G55: M2 | H55: 39.07 | I55: 39.07 | J55: 24.00% | K55: =ROUND(I55,2)+(ROUND(I55,2)*J55) -> 48.4468 | L55: =ROUND(S55,2) -> 13325.2 | N55: 5 | O55: IMPERMEABILIZAÇÕES | P55: 5 | Q55: VIGAS BALDRAME | R55: 275.03 | S55: =ROUND(K55,2)*R55 -> 13325.2035
A56: Serviço | B56: 3.26 | C56: SINAPI | D56: 93382 | E56: REATERRO MANUAL DE VALAS, COM COMPACTADOR DE SOLOS DE PERCUSSÃO. AF_08/2023 | F56: =R56 -> 39.55 | G56: M3 | H56: 24.52 | I56: 24.52 | J56: 24.00% | K56: =ROUND(I56,2)+(ROUND(I56,2)*J56) -> 30.4048 | L56: =ROUND(S56,2) -> 1202.32 | N56: 3 | O56: MOVIMENTAÇÃO DE SOLOS | P56: 5 | Q56: VIGAS BALDRAME | R56: 39.55 | S56: =ROUND(K56,2)*R56 -> 1202.32
A57: Macrosserviço | B57: 4 | E57: SUPERESTRUTURA | L57: =ROUND(L58,2)+ROUND(L59,2)+ROUND(L60,2)+ROUND(L61,2)+ROUND(L62,2)+ROUND(L63,2)+ROUND(L64,2)+ROUND(L65,2)+ROUND(L66,2)+ROUND(L67,2)+ROUND(L68,2)+ROUND(L69,2)+ROUND(L70,2)+ROUND(L71,2)+ROUND(L72,2)+ROUND(L73,2)+ROUND(L74,2)+ROUND(L75,2)+ROUND(L76,2)+ROUND(L77,2) -> 180645.02
A58: Serviço | B58: 4.1 | C58: SINAPI | D58: 92413 | E58: MONTAGEM E DESMONTAGEM DE FÔRMA DE PILARES RETANGULARES E ESTRUTURAS SIMILARES, PÉ-DIREITO SIMPLES, EM MADEIRA SERRADA, 4 UTILIZAÇÕES. AF_09/2020 | F58: =R58 -> 186.74 | G58: M2 | H58: 109.21 | I58: 109.21 | J58: 24.00% | K58: =ROUND(I58,2)+(ROUND(I58,2)*J58) -> 135.4204 | L58: =ROUND(S58,2) -> 25288.33 | N58: 7 | O58: FÔRMAS | P58: 6 | Q58: PILARES | R58: 186.74 | S58: =ROUND(K58,2)*R58 -> 25288.3308
A59: Serviço | B59: 4.2 | C59: SINAPI | D59: 92759 | E59: ARMAÇÃO DE PILAR OU VIGA DE ESTRUTURA CONVENCIONAL DE CONCRETO ARMADO UTILIZANDO AÇO CA-60 DE 5,0 MM - MONTAGEM. AF_06/2022 | F59: =R59 -> 240.00 | G59: KG | H59: 14.19 | I59: 14.19 | J59: 24.00% | K59: =ROUND(I59,2)+(ROUND(I59,2)*J59) -> 17.5956 | L59: =ROUND(S59,2) -> 4224 | N59: 6 | O59: ARMAÇÕES | P59: 6 | Q59: PILARES | R59: 240.00 | S59: =ROUND(K59,2)*R59 -> 4224
A60: Serviço | B60: 4.3 | C60: SINAPI | D60: 92761 | E60: ARMAÇÃO DE PILAR OU VIGA DE ESTRUTURA CONVENCIONAL DE CONCRETO ARMADO UTILIZANDO AÇO CA-50 DE 8,0 MM - MONTAGEM. AF_06/2022 | F60: =R60 -> 47.00 | G60: KG | H60: 12.68 | I60: 12.68 | J60: 24.00% | K60: =ROUND(I60,2)+(ROUND(I60,2)*J60) -> 15.7232 | L60: =ROUND(S60,2) -> 738.84 | N60: 6 | O60: ARMAÇÕES | P60: 6 | Q60: PILARES | R60: 47.00 | S60: =ROUND(K60,2)*R60 -> 738.84
A61: Serviço | B61: 4.4 | C61: SINAPI | D61: 92762 | E61: ARMAÇÃO DE PILAR OU VIGA DE ESTRUTURA CONVENCIONAL DE CONCRETO ARMADO UTILIZANDO AÇO CA-50 DE 10,0 MM - MONTAGEM. AF_06/2022 | F61: =R61 -> 418.00 | G61: KG | H61: 11.34 | I61: 11.34 | J61: 24.00% | K61: =ROUND(I61,2)+(ROUND(I61,2)*J61) -> 14.0616 | L61: =ROUND(S61,2) -> 5877.08 | N61: 6 | O61: ARMAÇÕES | P61: 6 | Q61: PILARES | R61: 418.00 | S61: =ROUND(K61,2)*R61 -> 5877.08
A62: Serviço | B62: 4.5 | C62: SINAPI | D62: 92763 | E62: ARMAÇÃO DE PILAR OU VIGA DE ESTRUTURA CONVENCIONAL DE CONCRETO ARMADO UTILIZANDO AÇO CA-50 DE 12,5 MM - MONTAGEM. AF_06/2022 | F62: =R62 -> 169.00 | G62: KG | H62: 9.55 | I62: 9.55 | J62: 24.00% | K62: =ROUND(I62,2)+(ROUND(I62,2)*J62) -> 11.842 | L62: =ROUND(S62,2) -> 2000.96 | N62: 6 | O62: ARMAÇÕES | P62: 6 | Q62: PILARES | R62: 169.00 | S62: =ROUND(K62,2)*R62 -> 2000.96
A63: Serviço | B63: 4.6 | C63: SINAPI | D63: 92764 | E63: ARMAÇÃO DE PILAR OU VIGA DE ESTRUTURA CONVENCIONAL DE CONCRETO ARMADO UTILIZANDO AÇO CA-50 DE 16,0 MM - MONTAGEM. AF_06/2022 | F63: =R63 -> 312.00 | G63: KG | H63: 9.25 | I63: 9.25 | J63: 24.00% | K63: =ROUND(I63,2)+(ROUND(I63,2)*J63) -> 11.47 | L63: =ROUND(S63,2) -> 3578.64 | N63: 6 | O63: ARMAÇÕES | P63: 6 | Q63: PILARES | R63: 312.00 | S63: =ROUND(K63,2)*R63 -> 3578.64
A64: Serviço | B64: 4.7 | C64: SINAPI | D64: 94972 | E64: CONCRETO FCK = 30MPA, TRAÇO 1:2,1:2,5 (EM MASSA SECA DE CIMENTO/ AREIA MÉDIA/ BRITA 1) - PREPARO MECÂNICO COM BETONEIRA 600 L. AF_05/2021 | F64: =R64 -> 10.21 | G64: M3 | H64: 630.8 | I64: 630.8 | J64: 24.00% | K64: =ROUND(I64,2)+(ROUND(I64,2)*J64) -> 782.192 | L64: =ROUND(S64,2) -> 7986.16 | N64: 8 | O64: CONCRETAGENS | P64: 6 | Q64: PILARES | R64: 10.21 | S64: =ROUND(K64,2)*R64 -> 7986.1599
A65: Serviço | B65: 4.8 | C65: SINAPI | D65: 103670 | E65: LANÇAMENTO COM USO DE BALDES, ADENSAMENTO E ACABAMENTO DE CONCRETO EM ESTRUTURAS. AF_02/2022 | F65: =R65 -> 10.21 | G65: M3 | H65: 287.19 | I65: 287.19 | J65: 24.00% | K65: =ROUND(I65,2)+(ROUND(I65,2)*J65) -> 356.1156 | L65: =ROUND(S65,2) -> 3635.99 | N65: 8 | O65: CONCRETAGENS | P65: 6 | Q65: PILARES | R65: 10.21 | S65: =ROUND(K65,2)*R65 -> 3635.9852
A66: Serviço | B66: 4.9 | C66: SINAPI | D66: 92448 | E66: MONTAGEM E DESMONTAGEM DE FÔRMA DE VIGA, ESCORAMENTO COM PONTALETE DE MADEIRA, PÉ-DIREITO SIMPLES, EM MADEIRA SERRADA, 4 UTILIZAÇÕES. AF_09/2020 | F66: =R66 -> 353.04 | G66: M2 | H66: 155.89 | I66: 155.89 | J66: 24.00% | K66: =ROUND(I66,2)+(ROUND(I66,2)*J66) -> 193.3036 | L66: =ROUND(S66,2) -> 68242.63 | N66: 7 | O66: FÔRMAS | P66: 7 | Q66: VIGAS | R66: 353.04 | S66: =ROUND(K66,2)*R66 -> 68242.632
A67: Serviço | B67: 4.10 | C67: SINAPI | D67: 92759 | E67: ARMAÇÃO DE PILAR OU VIGA DE ESTRUTURA CONVENCIONAL DE CONCRETO ARMADO UTILIZANDO AÇO CA-60 DE 5,0 MM - MONTAGEM. AF_06/2022 | F67: =R67 -> 376.00 | G67: KG | H67: 14.19 | I67: 14.19 | J67: 24.00% | K67: =ROUND(I67,2)+(ROUND(I67,2)*J67) -> 17.5956 | L67: =ROUND(S67,2) -> 6617.6 | N67: 6 | O67: ARMAÇÕES | P67: 7 | Q67: VIGAS | R67: 376.00 | S67: =ROUND(K67,2)*R67 -> 6617.6
A68: Serviço | B68: 4.11 | C68: SINAPI | D68: 92760 | E68: ARMAÇÃO DE PILAR OU VIGA DE ESTRUTURA CONVENCIONAL DE CONCRETO ARMADO UTILIZANDO AÇO CA-50 DE 6,3 MM - MONTAGEM. AF_06/2022 | F68: =R68 -> 70.00 | G68: KG | H68: 13.45 | I68: 13.45 | J68: 24.00% | K68: =ROUND(I68,2)+(ROUND(I68,2)*J68) -> 16.678 | L68: =ROUND(S68,2) -> 1167.6 | N68: 6 | O68: ARMAÇÕES | P68: 7 | Q68: VIGAS | R68: 70.00 | S68: =ROUND(K68,2)*R68 -> 1167.6
A69: Serviço | B69: 4.12 | C69: SINAPI | D69: 92761 | E69: ARMAÇÃO DE PILAR OU VIGA DE ESTRUTURA CONVENCIONAL DE CONCRETO ARMADO UTILIZANDO AÇO CA-50 DE 8,0 MM - MONTAGEM. AF_06/2022 | F69: =R69 -> 426.00 | G69: KG | H69: 12.68 | I69: 12.68 | J69: 24.00% | K69: =ROUND(I69,2)+(ROUND(I69,2)*J69) -> 15.7232 | L69: =ROUND(S69,2) -> 6696.72 | N69: 6 | O69: ARMAÇÕES | P69: 7 | Q69: VIGAS | R69: 426.00 | S69: =ROUND(K69,2)*R69 -> 6696.72
A70: Serviço | B70: 4.13 | C70: SINAPI | D70: 92762 | E70: ARMAÇÃO DE PILAR OU VIGA DE ESTRUTURA CONVENCIONAL DE CONCRETO ARMADO UTILIZANDO AÇO CA-50 DE 10,0 MM - MONTAGEM. AF_06/2022 | F70: =R70 -> 433.00 | G70: KG | H70: 11.34 | I70: 11.34 | J70: 24.00% | K70: =ROUND(I70,2)+(ROUND(I70,2)*J70) -> 14.0616 | L70: =ROUND(S70,2) -> 6087.98 | N70: 6 | O70: ARMAÇÕES | P70: 7 | Q70: VIGAS | R70: 433.00 | S70: =ROUND(K70,2)*R70 -> 6087.98
A71: Serviço | B71: 4.14 | C71: SINAPI | D71: 92763 | E71: ARMAÇÃO DE PILAR OU VIGA DE ESTRUTURA CONVENCIONAL DE CONCRETO ARMADO UTILIZANDO AÇO CA-50 DE 12,5 MM - MONTAGEM. AF_06/2022 | F71: =R71 -> 26.00 | G71: KG | H71: 9.55 | I71: 9.55 | J71: 24.00% | K71: =ROUND(I71,2)+(ROUND(I71,2)*J71) -> 11.842 | L71: =ROUND(S71,2) -> 307.84 | N71: 6 | O71: ARMAÇÕES | P71: 7 | Q71: VIGAS | R71: 26.00 | S71: =ROUND(K71,2)*R71 -> 307.84
A72: Serviço | B72: 4.15 | C72: SINAPI | D72: 92764 | E72: ARMAÇÃO DE PILAR OU VIGA DE ESTRUTURA CONVENCIONAL DE CONCRETO ARMADO UTILIZANDO AÇO CA-50 DE 16,0 MM - MONTAGEM. AF_06/2022 | F72: =R72 -> 18.00 | G72: KG | H72: 9.25 | I72: 9.25 | J72: 24.00% | K72: =ROUND(I72,2)+(ROUND(I72,2)*J72) -> 11.47 | L72: =ROUND(S72,2) -> 206.46 | N72: 6 | O72: ARMAÇÕES | P72: 7 | Q72: VIGAS | R72: 18.00 | S72: =ROUND(K72,2)*R72 -> 206.46
A73: Serviço | B73: 4.16 | C73: Composição | D73: C30-USINADO | E73: CONCRETAGEM DE VIGAS E LAJES, FCK=30 MPA, PARA LAJES MACIÇAS OU NERVURADAS COM USO DE BOMBA - LANÇAMENTO, ADENSAMENTO E ACABAMENTO. AF_02/2022_PS (REF. 103675) | F73: =R73 -> 24.27 | G73: M3 | H73: 913.41 | I73: 913.41 | J73: 24.00% | K73: =ROUND(I73,2)+(ROUND(I73,2)*J73) -> 1132.6284 | L73: =ROUND(S73,2) -> 27488.93 | N73: 8 | O73: CONCRETAGENS | P73: 7 | Q73: VIGAS | R73: 24.27 | S73: =ROUND(K73,2)*R73 -> 27488.9301
A74: Serviço | B74: 4.17 | C74: SINAPI | D74: 92267 | E74: FABRICAÇÃO DE FÔRMA PARA LAJES, EM CHAPA DE MADEIRA COMPENSADA RESINADA, E = 17 MM. AF_09/2020 | F74: =R74 -> 27.14 | G74: M2 | H74: 61.48 | I74: 61.48 | J74: 24.00% | K74: =ROUND(I74,2)+(ROUND(I74,2)*J74) -> 76.2352 | L74: =ROUND(S74,2) -> 2069.15 | N74: 7 | O74: FÔRMAS | P74: 8 | Q74: LAJES | R74: 27.14 | S74: =ROUND(K74,2)*R74 -> 2069.1536
A75: Serviço | B75: 4.18 | C75: SINAPI | D75: 92769 | E75: ARMAÇÃO DE LAJE DE ESTRUTURA CONVENCIONAL DE CONCRETO ARMADO UTILIZANDO AÇO CA-50 DE 6,3 MM - MONTAGEM. AF_06/2022 | F75: =R75 -> 122.00 | G75: KG | H75: 12.95 | I75: 12.95 | J75: 24.00% | K75: =ROUND(I75,2)+(ROUND(I75,2)*J75) -> 16.058 | L75: =ROUND(S75,2) -> 1959.32 | N75: 6 | O75: ARMAÇÕES | P75: 8 | Q75: LAJES | R75: 122.00 | S75: =ROUND(K75,2)*R75 -> 1959.32
A76: Serviço | B76: 4.19 | C76: SINAPI | D76: 92770 | E76: ARMAÇÃO DE LAJE DE ESTRUTURA CONVENCIONAL DE CONCRETO ARMADO UTILIZANDO AÇO CA-50 DE 8,0 MM - MONTAGEM. AF_06/2022 | F76: =R76 -> 123.00 | G76: KG | H76: 12.2 | I76: 12.2 | J76: 24.00% | K76: =ROUND(I76,2)+(ROUND(I76,2)*J76) -> 15.128 | L76: =ROUND(S76,2) -> 1860.99 | N76: 6 | O76: ARMAÇÕES | P76: 8 | Q76: LAJES | R76: 123.00 | S76: =ROUND(K76,2)*R76 -> 1860.99
A77: Serviço | B77: 4.20 | C77: Composição | D77: C30-USINADO | E77: CONCRETAGEM DE VIGAS E LAJES, FCK=30 MPA, PARA LAJES MACIÇAS OU NERVURADAS COM USO DE BOMBA - LANÇAMENTO, ADENSAMENTO E ACABAMENTO. AF_02/2022_PS (REF. 103675) | F77: =R77 -> 4.07 | G77: M3 | H77: 913.41 | I77: 913.41 | J77: 24.00% | K77: =ROUND(I77,2)+(ROUND(I77,2)*J77) -> 1132.6284 | L77: =ROUND(S77,2) -> 4609.8 | N77: 8 | O77: CONCRETAGENS | P77: 8 | Q77: LAJES | R77: 4.07 | S77: =ROUND(K77,2)*R77 -> 4609.8041
A78: Macrosserviço | B78: 5 | E78: COBERTURA | L78: =ROUND(L79,2)+ROUND(L80,2)+ROUND(L81,2)+ROUND(L82,2)+ROUND(L83,2)+ROUND(L84,2) -> 152419.03
A79: Serviço | B79: 5.1 | C79: Composição | D79: S-100775 | E79: SINAPI - 12/2024 - 100775 - ALTERADA CHAPA DE AÇO REPRESENTATIVA EM KG | F79: =R79 -> 3,084.16 | G79: KG | H79: 12.58 | I79: 12.58 | J79: 24.00% | K79: =ROUND(I79,2)+(ROUND(I79,2)*J79) -> 15.5992 | L79: =ROUND(S79,2) -> 48112.9 | N79: 11 | O79: ESTRUTURA METÁLICA DE COBERTURA | P79: 2 | Q79: EDIFICAÇÃO | R79: 3,084.16 | S79: =ROUND(K79,2)*R79 -> 48112.896
A80: Serviço | B80: 5.2 | C80: Composição | D80: 946158-009 | E80: PINTURA ESTRUTURA METÁLICA DE COBERTURA | F80: =R80 -> 276.29 | G80: M2 | H80: 44.54 | I80: 44.54 | J80: 24.00% | K80: =ROUND(I80,2)+(ROUND(I80,2)*J80) -> 55.2296 | L80: =ROUND(S80,2) -> 15259.5 | N80: 11 | O80: ESTRUTURA METÁLICA DE COBERTURA | P80: 2 | Q80: EDIFICAÇÃO | R80: 276.29 | S80: =ROUND(K80,2)*R80 -> 15259.4967
A81: Serviço | B81: 5.3 | C81: SINAPI | D81: 92921 | E81: ARMAÇÃO DE ESTRUTURAS DIVERSAS DE CONCRETO ARMADO, EXCETO VIGAS, PILARES, LAJES E FUNDAÇÕES, UTILIZANDO AÇO CA-50 DE 12,5 MM - MONTAGEM. AF_06/2022 | F81: =R81 -> 100.29 | G81: KG | H81: 10.16 | I81: 10.16 | J81: 24.00% | K81: =ROUND(I81,2)+(ROUND(I81,2)*J81) -> 12.5984 | L81: =ROUND(S81,2) -> 1263.65 | N81: 11 | O81: ESTRUTURA METÁLICA DE COBERTURA | P81: 2 | Q81: EDIFICAÇÃO | R81: 100.29 | S81: =ROUND(K81,2)*R81 -> 1263.654
A82: Serviço | B82: 5.4 | C82: SINAPI | D82: 94228 | E82: CALHA EM CHAPA DE AÇO GALVANIZADO NÚMERO 24, DESENVOLVIMENTO DE 50 CM, INCLUSO TRANSPORTE VERTICAL. AF_07/2019 | F82: =R82 -> 65.88 | G82: M | H82: 95.5 | I82: 95.5 | J82: 24.00% | K82: =ROUND(I82,2)+(ROUND(I82,2)*J82) -> 118.42 | L82: =ROUND(S82,2) -> 7801.51 | N82: 12 | O82: TELHAMENTO - RUFOS E CALHAS | P82: 2 | Q82: EDIFICAÇÃO | R82: 65.88 | S82: =ROUND(K82,2)*R82 -> 7801.5096
A83: Serviço | B83: 5.5 | C83: SINAPI | D83: 94231 | E83: RUFO EM CHAPA DE AÇO GALVANIZADO NÚMERO 24, CORTE DE 25 CM, INCLUSO TRANSPORTE VERTICAL. AF_07/2019 | F83: =R83 -> 138.65 | G83: M | H83: 57.12 | I83: 57.12 | J83: 24.00% | K83: =ROUND(I83,2)+(ROUND(I83,2)*J83) -> 70.8288 | L83: =ROUND(S83,2) -> 9820.58 | N83: 12 | O83: TELHAMENTO - RUFOS E CALHAS | P83: 2 | Q83: EDIFICAÇÃO | R83: 138.65 | S83: =ROUND(K83,2)*R83 -> 9820.5795
A84: Serviço | B84: 5.6 | C84: SINAPI | D84: 94216 | E84: TELHAMENTO COM TELHA METÁLICA TERMOACÚSTICA E = 30 MM, COM ATÉ 2 ÁGUAS, INCLUSO IÇAMENTO. AF_07/2019 | F84: =R84 -> 315.50 | G84: M2 | H84: 179.34 | I84: 179.34 | J84: 24.00% | K84: =ROUND(I84,2)+(ROUND(I84,2)*J84) -> 222.3816 | L84: =ROUND(S84,2) -> 70160.89 | N84: 12 | O84: TELHAMENTO - RUFOS E CALHAS | P84: 2 | Q84: EDIFICAÇÃO | R84: 315.50 | S84: =ROUND(K84,2)*R84 -> 70160.89
A85: Macrosserviço | B85: 6 | E85: ALVENARIA E CONTRAMARCOS | L85: =ROUND(L86,2)+ROUND(L87,2)+ROUND(L88,2) -> 78429.06
A86: Serviço | B86: 6.1 | C86: SINAPI | D86: 103328 | E86: ALVENARIA DE VEDAÇÃO DE BLOCOS CERÂMICOS FURADOS NA HORIZONTAL DE 9X19X19 CM (ESPESSURA 9 CM) E ARGAMASSA DE ASSENTAMENTO COM PREPARO EM BETONEIRA. AF_12/2021 | F86: =R86 -> 600.62 | G86: M2 | H86: 96.46 | I86: 96.46 | J86: 24.00% | K86: =ROUND(I86,2)+(ROUND(I86,2)*J86) -> 119.6104 | L86: =ROUND(S86,2) -> 71840.16 | N86: 9 | O86: ALVENARIA DE BLOCOS CERÂMICOS | P86: 2 | Q86: EDIFICAÇÃO | R86: 600.62 | S86: =ROUND(K86,2)*R86 -> 71840.1582
A87: Serviço | B87: 6.2 | C87: SINAPI | D87: 93187 | E87: VERGA MOLDADA IN LOCO EM CONCRETO, ESPESSURA DE *20* CM. AF_03/2024 | F87: =R87 -> 56.49 | G87: M | H87: 76.68 | I87: 76.68 | J87: 24.00% | K87: =ROUND(I87,2)+(ROUND(I87,2)*J87) -> 95.0832 | L87: =ROUND(S87,2) -> 5371.07 | N87: 10 | O87: CONTRAMARCOS | P87: 2 | Q87: EDIFICAÇÃO | R87: 56.49 | S87: =ROUND(K87,2)*R87 -> 5371.0692
A88: Serviço | B88: 6.3 | C88: SINAPI | D88: 93197 | E88: CONTRAVERGA MOLDADA IN LOCO EM CONCRETO, ESPESSURA DE *20* CM. AF_03/2024 | F88: =R88 -> 16.80 | G88: M | H88: 58.46 | I88: 58.46 | J88: 24.00% | K88: =ROUND(I88,2)+(ROUND(I88,2)*J88) -> 72.4904 | L88: =ROUND(S88,2) -> 1217.83 | N88: 10 | O88: CONTRAMARCOS | P88: 2 | Q88: EDIFICAÇÃO | R88: 16.80 | S88: =ROUND(K88,2)*R88 -> 1217.832
A89: Macrosserviço | B89: 7 | E89: INSTALAÇÕES ELÉTRICAS | L89: =ROUND(L90,2)+ROUND(L91,2)+ROUND(L92,2)+ROUND(L93,2)+ROUND(L94,2)+ROUND(L95,2)+ROUND(L96,2)+ROUND(L97,2)+ROUND(L98,2)+ROUND(L99,2)+ROUND(L100,2)+ROUND(L101,2)+ROUND(L102,2)+ROUND(L103,2)+ROUND(L104,2)+ROUND(L105,2)+ROUND(L106,2)+ROUND(L107,2)+ROUND(L108,2)+ROUND(L109,2)+ROUND(L110,2)+ROUND(L111,2)+ROUND(L112,2)+ROUND(L113,2)+ROUND(L114,2)+ROUND(L115,2)+ROUND(L116,2)+ROUND(L117,2)+ROUND(L118,2)+ROUND(L119,2)+ROUND(L120,2)+ROUND(L121,2)+ROUND(L122,2)+ROUND(L123,2)+ROUND(L124,2) -> 38605.51
A90: Serviço | B90: 7.1 | C90: SINAPI | D90: 91924 | E90: CABO DE COBRE FLEXÍVEL ISOLADO, 1,5 MM², ANTI-CHAMA 450/750 V, PARA CIRCUITOS TERMINAIS - FORNECIMENTO E INSTALAÇÃO. AF_03/2023 | F90: =R90 -> 723.20 | G90: M | H90: 3.26 | I90: 3.26 | J90: 24.00% | K90: =ROUND(I90,2)+(ROUND(I90,2)*J90) -> 4.0424 | L90: =ROUND(S90,2) -> 2921.73 | N90: 13 | O90: CONDUTORES ELÉTRICOS | P90: 2 | Q90: EDIFICAÇÃO | R90: 723.20 | S90: =ROUND(K90,2)*R90 -> 2921.728
A91: Serviço | B91: 7.2 | C91: SINAPI | D91: 91926 | E91: CABO DE COBRE FLEXÍVEL ISOLADO, 2,5 MM², ANTI-CHAMA 450/750 V, PARA CIRCUITOS TERMINAIS - FORNECIMENTO E INSTALAÇÃO. AF_03/2023 | F91: =R91 -> 862.71 | G91: M | H91: 4.78 | I91: 4.78 | J91: 24.00% | K91: =ROUND(I91,2)+(ROUND(I91,2)*J91) -> 5.9272 | L91: =ROUND(S91,2) -> 5115.87 | N91: 13 | O91: CONDUTORES ELÉTRICOS | P91: 2 | Q91: EDIFICAÇÃO | R91: 862.71 | S91: =ROUND(K91,2)*R91 -> 5115.8703
A92: Serviço | B92: 7.3 | C92: SINAPI | D92: 91928 | E92: CABO DE COBRE FLEXÍVEL ISOLADO, 4 MM², ANTI-CHAMA 450/750 V, PARA CIRCUITOS TERMINAIS - FORNECIMENTO E INSTALAÇÃO. AF_03/2023 | F92: =R92 -> 230.87 | G92: M | H92: 7.44 | I92: 7.44 | J92: 24.00% | K92: =ROUND(I92,2)+(ROUND(I92,2)*J92) -> 9.2256 | L92: =ROUND(S92,2) -> 2130.93 | N92: 13 | O92: CONDUTORES ELÉTRICOS | P92: 2 | Q92: EDIFICAÇÃO | R92: 230.87 | S92: =ROUND(K92,2)*R92 -> 2130.9301
A93: Serviço | B93: 7.4 | C93: SINAPI | D93: 92982 | E93: CABO DE COBRE FLEXÍVEL ISOLADO, 16 MM², ANTI-CHAMA 0,6/1,0 KV, PARA DISTRIBUIÇÃO - FORNECIMENTO E INSTALAÇÃO. AF_10/2020 | F93: =R93 -> 104.20 | G93: M | H93: 19.49 | I93: 19.49 | J93: 24.00% | K93: =ROUND(I93,2)+(ROUND(I93,2)*J93) -> 24.1676 | L93: =ROUND(S93,2) -> 2518.51 | N93: 13 | O93: CONDUTORES ELÉTRICOS | P93: 2 | Q93: EDIFICAÇÃO | R93: 104.20 | S93: =ROUND(K93,2)*R93 -> 2518.514
A94: Serviço | B94: 7.5 | C94: SINAPI | D94: 92984 | E94: CABO DE COBRE FLEXÍVEL ISOLADO, 25 MM², ANTI-CHAMA 0,6/1,0 KV, PARA REDE ENTERRADA DE DISTRIBUIÇÃO DE ENERGIA ELÉTRICA - FORNECIMENTO E INSTALAÇÃO. AF_12/2021 | F94: =R94 -> 27.20 | G94: M | H94: 31.9 | I94: 31.9 | J94: 24.00% | K94: =ROUND(I94,2)+(ROUND(I94,2)*J94) -> 39.556 | L94: =ROUND(S94,2) -> 1076.03 | N94: 13 | O94: CONDUTORES ELÉTRICOS | P94: 2 | Q94: EDIFICAÇÃO | R94: 27.20 | S94: =ROUND(K94,2)*R94 -> 1076.032
A95: Serviço | B95: 7.6 | C95: SINAPI | D95: 93653 | E95: DISJUNTOR MONOPOLAR TIPO DIN, CORRENTE NOMINAL DE 10A - FORNECIMENTO E INSTALAÇÃO. AF_10/2020 | F95: =R95 -> 13.00 | G95: UN | H95: 12.2 | I95: 12.2 | J95: 24.00% | K95: =ROUND(I95,2)+(ROUND(I95,2)*J95) -> 15.128 | L95: =ROUND(S95,2) -> 196.69 | N95: 14 | O95: DISJUNTORES | P95: 2 | Q95: EDIFICAÇÃO | R95: 13.00 | S95: =ROUND(K95,2)*R95 -> 196.69
A96: Serviço | B96: 7.7 | C96: SINAPI | D96: 93654 | E96: DISJUNTOR MONOPOLAR TIPO DIN, CORRENTE NOMINAL DE 16A - FORNECIMENTO E INSTALAÇÃO. AF_10/2020 | F96: =R96 -> 2.00 | G96: UN | H96: 12.82 | I96: 12.82 | J96: 24.00% | K96: =ROUND(I96,2)+(ROUND(I96,2)*J96) -> 15.8968 | L96: =ROUND(S96,2) -> 31.8 | N96: 14 | O96: DISJUNTORES | P96: 2 | Q96: EDIFICAÇÃO | R96: 2.00 | S96: =ROUND(K96,2)*R96 -> 31.8
A97: Serviço | B97: 7.8 | C97: SINAPI | D97: 93655 | E97: DISJUNTOR MONOPOLAR TIPO DIN, CORRENTE NOMINAL DE 20A - FORNECIMENTO E INSTALAÇÃO. AF_10/2020 | F97: =R97 -> 4.00 | G97: UN | H97: 14.11 | I97: 14.11 | J97: 24.00% | K97: =ROUND(I97,2)+(ROUND(I97,2)*J97) -> 17.4964 | L97: =ROUND(S97,2) -> 70 | N97: 14 | O97: DISJUNTORES | P97: 2 | Q97: EDIFICAÇÃO | R97: 4.00 | S97: =ROUND(K97,2)*R97 -> 70
A98: Serviço | B98: 7.9 | C98: SINAPI | D98: 93660 | E98: DISJUNTOR BIPOLAR TIPO DIN, CORRENTE NOMINAL DE 10A - FORNECIMENTO E INSTALAÇÃO. AF_10/2020 | F98: =R98 -> 4.00 | G98: UN | H98: 58.97 | I98: 58.97 | J98: 24.00% | K98: =ROUND(I98,2)+(ROUND(I98,2)*J98) -> 73.1228 | L98: =ROUND(S98,2) -> 292.48 | N98: 14 | O98: DISJUNTORES | P98: 2 | Q98: EDIFICAÇÃO | R98: 4.00 | S98: =ROUND(K98,2)*R98 -> 292.48
A99: Serviço | B99: 7.10 | C99: SINAPI | D99: 93661 | E99: DISJUNTOR BIPOLAR TIPO DIN, CORRENTE NOMINAL DE 16A - FORNECIMENTO E INSTALAÇÃO. AF_10/2020 | F99: =R99 -> 1.00 | G99: UN | H99: 60.21 | I99: 60.21 | J99: 24.00% | K99: =ROUND(I99,2)+(ROUND(I99,2)*J99) -> 74.6604 | L99: =ROUND(S99,2) -> 74.66 | N99: 14 | O99: DISJUNTORES | P99: 2 | Q99: EDIFICAÇÃO | R99: 1.00 | S99: =ROUND(K99,2)*R99 -> 74.66
A100: Serviço | B100: 7.11 | C100: SINAPI | D100: 93668 | E100: DISJUNTOR TRIPOLAR TIPO DIN, CORRENTE NOMINAL DE 16A - FORNECIMENTO E INSTALAÇÃO. AF_10/2020 | F100: =R100 -> 1.00 | G100: UN | H100: 75.75 | I100: 75.75 | J100: 24.00% | K100: =ROUND(I100,2)+(ROUND(I100,2)*J100) -> 93.93 | L100: =ROUND(S100,2) -> 93.93 | N100: 14 | O100: DISJUNTORES | P100: 2 | Q100: EDIFICAÇÃO | R100: 1.00 | S100: =ROUND(K100,2)*R100 -> 93.93
A101: Serviço | B101: 7.12 | C101: SINAPI | D101: 101894 | E101: DISJUNTOR TRIPOLAR TIPO NEMA, CORRENTE NOMINAL DE 60 ATÉ 100A - FORNECIMENTO E INSTALAÇÃO. AF_10/2020 | F101: =R101 -> 2.00 | G101: UN | H101: 162.53 | I101: 162.53 | J101: 24.00% | K101: =ROUND(I101,2)+(ROUND(I101,2)*J101) -> 201.5372 | L101: =ROUND(S101,2) -> 403.08 | N101: 14 | O101: DISJUNTORES | P101: 2 | Q101: EDIFICAÇÃO | R101: 2.00 | S101: =ROUND(K101,2)*R101 -> 403.08
A102: Serviço | B102: 7.13 | C102: Composição | D102: DPS-175V-20KA | E102: DISPOSITIVO DPS CLASSE II, 175 V, 20 KA - FORNECIMENTO E INSTALAÇÃO | F102: =R102 -> 6.00 | G102: UN | H102: 76.44 | I102: 76.44 | J102: 24.00% | K102: =ROUND(I102,2)+(ROUND(I102,2)*J102) -> 94.7856 | L102: =ROUND(S102,2) -> 568.74 | N102: 14 | O102: DISJUNTORES | P102: 2 | Q102: EDIFICAÇÃO | R102: 6.00 | S102: =ROUND(K102,2)*R102 -> 568.74
A103: Serviço | B103: 7.14 | C103: Composição | D103: DR-63A | E103: INTERRUPTOR TETRAPOLAR DR 63A - FORNECIMENTO E INSTALAÇÃO | F103: =R103 -> 1.00 | G103: UN | H103: 181.04 | I103: 181.04 | J103: 24.00% | K103: =ROUND(I103,2)+(ROUND(I103,2)*J103) -> 224.4896 | L103: =ROUND(S103,2) -> 224.49 | N103: 14 | O103: DISJUNTORES | P103: 2 | Q103: EDIFICAÇÃO | R103: 1.00 | S103: =ROUND(K103,2)*R103 -> 224.49
A104: Serviço | B104: 7.15 | C104: Composição | D104: DR-63A | E104: INTERRUPTOR TETRAPOLAR DR 63A - FORNECIMENTO E INSTALAÇÃO | F104: =R104 -> 1.00 | G104: UN | H104: 181.04 | I104: 181.04 | J104: 24.00% | K104: =ROUND(I104,2)+(ROUND(I104,2)*J104) -> 224.4896 | L104: =ROUND(S104,2) -> 224.49 | N104: 14 | O104: DISJUNTORES | P104: 2 | Q104: EDIFICAÇÃO | R104: 1.00 | S104: =ROUND(K104,2)*R104 -> 224.49
A105: Serviço | B105: 7.16 | C105: SINAPI | D105: 91857 | E105: ELETRODUTO FLEXÍVEL CORRUGADO REFORÇADO, PVC, DN 32 MM (1"), PARA CIRCUITOS TERMINAIS, INSTALADO EM PAREDE - FORNECIMENTO E INSTALAÇÃO. AF_03/2023 | F105: =R105 -> 64.50 | G105: M | H105: 15.24 | I105: 15.24 | J105: 24.00% | K105: =ROUND(I105,2)+(ROUND(I105,2)*J105) -> 18.8976 | L105: =ROUND(S105,2) -> 1219.05 | N105: 15 | O105: ELETRODUTOS E CAIXAS | P105: 2 | Q105: EDIFICAÇÃO | R105: 64.50 | S105: =ROUND(K105,2)*R105 -> 1219.05
A106: Serviço | B106: 7.17 | C106: SINAPI | D106: 91855 | E106: ELETRODUTO FLEXÍVEL CORRUGADO REFORÇADO, PVC, DN 25 MM (3/4"), PARA CIRCUITOS TERMINAIS, INSTALADO EM PAREDE - FORNECIMENTO E INSTALAÇÃO. AF_03/2023 | F106: =R106 -> 374.64 | G106: M | H106: 10.76 | I106: 10.76 | J106: 24.00% | K106: =ROUND(I106,2)+(ROUND(I106,2)*J106) -> 13.3424 | L106: =ROUND(S106,2) -> 4997.7 | N106: 15 | O106: ELETRODUTOS E CAIXAS | P106: 2 | Q106: EDIFICAÇÃO | R106: 374.64 | S106: =ROUND(K106,2)*R106 -> 4997.6976
A107: Serviço | B107: 7.18 | C107: SINAPI | D107: 97669 | E107: ELETRODUTO FLEXÍVEL CORRUGADO, PEAD, DN 90 (3"), PARA REDE ENTERRADA DE DISTRIBUIÇÃO DE ENERGIA ELÉTRICA - FORNECIMENTO E INSTALAÇÃO. AF_12/2021 | F107: =R107 -> 28.20 | G107: M | H107: 16.7 | I107: 16.7 | J107: 24.00% | K107: =ROUND(I107,2)+(ROUND(I107,2)*J107) -> 20.708 | L107: =ROUND(S107,2) -> 584.02 | N107: 15 | O107: ELETRODUTOS E CAIXAS | P107: 2 | Q107: EDIFICAÇÃO | R107: 28.20 | S107: =ROUND(K107,2)*R107 -> 584.022
A108: Serviço | B108: 7.19 | C108: SINAPI | D108: 91959 | E108: INTERRUPTOR SIMPLES (2 MÓDULOS), 10A/250V, INCLUINDO SUPORTE E PLACA - FORNECIMENTO E INSTALAÇÃO. AF_03/2023 | F108: =R108 -> 1.00 | G108: UN | H108: 44.03 | I108: 44.03 | J108: 24.00% | K108: =ROUND(I108,2)+(ROUND(I108,2)*J108) -> 54.5972 | L108: =ROUND(S108,2) -> 54.6 | N108: 16 | O108: QUADROS E DISPOSITIVOS ELÉTRICOS | P108: 2 | Q108: EDIFICAÇÃO | R108: 1.00 | S108: =ROUND(K108,2)*R108 -> 54.6
A109: Serviço | B109: 7.20 | C109: SINAPI | D109: 91955 | E109: INTERRUPTOR PARALELO (1 MÓDULO), 10A/250V, INCLUINDO SUPORTE E PLACA - FORNECIMENTO E INSTALAÇÃO. AF_03/2023 | F109: =R109 -> 2.00 | G109: UN | H109: 35.15 | I109: 35.15 | J109: 24.00% | K109: =ROUND(I109,2)+(ROUND(I109,2)*J109) -> 43.586 | L109: =ROUND(S109,2) -> 87.18 | N109: 16 | O109: QUADROS E DISPOSITIVOS ELÉTRICOS | P109: 2 | Q109: EDIFICAÇÃO | R109: 2.00 | S109: =ROUND(K109,2)*R109 -> 87.18
A110: Serviço | B110: 7.21 | C110: SINAPI | D110: 91953 | E110: INTERRUPTOR SIMPLES (1 MÓDULO), 10A/250V, INCLUINDO SUPORTE E PLACA - FORNECIMENTO E INSTALAÇÃO. AF_03/2023 | F110: =R110 -> 9.00 | G110: UN | H110: 28.9 | I110: 28.9 | J110: 24.00% | K110: =ROUND(I110,2)+(ROUND(I110,2)*J110) -> 35.836 | L110: =ROUND(S110,2) -> 322.56 | N110: 16 | O110: QUADROS E DISPOSITIVOS ELÉTRICOS | P110: 2 | Q110: EDIFICAÇÃO | R110: 9.00 | S110: =ROUND(K110,2)*R110 -> 322.56
A111: Serviço | B111: 7.22 | C111: SINAPI | D111: 91967 | E111: INTERRUPTOR SIMPLES (3 MÓDULOS), 10A/250V, INCLUINDO SUPORTE E PLACA - FORNECIMENTO E INSTALAÇÃO. AF_03/2023 | F111: =R111 -> 1.00 | G111: UN | H111: 59.16 | I111: 59.16 | J111: 24.00% | K111: =ROUND(I111,2)+(ROUND(I111,2)*J111) -> 73.3584 | L111: =ROUND(S111,2) -> 73.36 | N111: 16 | O111: QUADROS E DISPOSITIVOS ELÉTRICOS | P111: 2 | Q111: EDIFICAÇÃO | R111: 1.00 | S111: =ROUND(K111,2)*R111 -> 73.36
A112: Serviço | B112: 7.23 | C112: SINAPI | D112: 92023 | E112: INTERRUPTOR SIMPLES (1 MÓDULO) COM 1 TOMADA DE EMBUTIR 2P+T 10 A, INCLUINDO SUPORTE E PLACA - FORNECIMENTO E INSTALAÇÃO. AF_03/2023 | F112: =R112 -> 10.00 | G112: UN | H112: 49.16 | I112: 49.16 | J112: 24.00% | K112: =ROUND(I112,2)+(ROUND(I112,2)*J112) -> 60.9584 | L112: =ROUND(S112,2) -> 609.6 | N112: 16 | O112: QUADROS E DISPOSITIVOS ELÉTRICOS | P112: 2 | Q112: EDIFICAÇÃO | R112: 10.00 | S112: =ROUND(K112,2)*R112 -> 609.6
A113: Serviço | B113: 7.24 | C113: SINAPI | D113: 92008 | E113: TOMADA BAIXA DE EMBUTIR (2 MÓDULOS), 2P+T 10 A, INCLUINDO SUPORTE E PLACA - FORNECIMENTO E INSTALAÇÃO. AF_03/2023 | F113: =R113 -> 15.00 | G113: UN | H113: 46.8 | I113: 46.8 | J113: 24.00% | K113: =ROUND(I113,2)+(ROUND(I113,2)*J113) -> 58.032 | L113: =ROUND(S113,2) -> 870.45 | N113: 16 | O113: QUADROS E DISPOSITIVOS ELÉTRICOS | P113: 2 | Q113: EDIFICAÇÃO | R113: 15.00 | S113: =ROUND(K113,2)*R113 -> 870.45
A114: Serviço | B114: 7.25 | C114: SINAPI | D114: 92000 | E114: TOMADA BAIXA DE EMBUTIR (1 MÓDULO), 2P+T 10 A, INCLUINDO SUPORTE E PLACA - FORNECIMENTO E INSTALAÇÃO. AF_03/2023 | F114: =R114 -> 12.00 | G114: UN | H114: 30.31 | I114: 30.31 | J114: 24.00% | K114: =ROUND(I114,2)+(ROUND(I114,2)*J114) -> 37.5844 | L114: =ROUND(S114,2) -> 450.96 | N114: 16 | O114: QUADROS E DISPOSITIVOS ELÉTRICOS | P114: 2 | Q114: EDIFICAÇÃO | R114: 12.00 | S114: =ROUND(K114,2)*R114 -> 450.96
A115: Serviço | B115: 7.26 | C115: SINAPI | D115: 92001 | E115: TOMADA BAIXA DE EMBUTIR (1 MÓDULO), 2P+T 20 A, INCLUINDO SUPORTE E PLACA - FORNECIMENTO E INSTALAÇÃO. AF_03/2023 | F115: =R115 -> 4.00 | G115: UN | H115: 32.4 | I115: 32.4 | J115: 24.00% | K115: =ROUND(I115,2)+(ROUND(I115,2)*J115) -> 40.176 | L115: =ROUND(S115,2) -> 160.72 | N115: 16 | O115: QUADROS E DISPOSITIVOS ELÉTRICOS | P115: 2 | Q115: EDIFICAÇÃO | R115: 4.00 | S115: =ROUND(K115,2)*R115 -> 160.72
A116: Serviço | B116: 7.27 | C116: SINAPI | D116: 101946 | E116: QUADRO DE MEDIÇÃO GERAL DE ENERGIA PARA 1 MEDIDOR DE SOBREPOR - FORNECIMENTO E INSTALAÇÃO. AF_10/2020 | F116: =R116 -> 1.00 | G116: UN | H116: 171.59 | I116: 171.59 | J116: 24.00% | K116: =ROUND(I116,2)+(ROUND(I116,2)*J116) -> 212.7716 | L116: =ROUND(S116,2) -> 212.77 | N116: 16 | O116: QUADROS E DISPOSITIVOS ELÉTRICOS | P116: 2 | Q116: EDIFICAÇÃO | R116: 1.00 | S116: =ROUND(K116,2)*R116 -> 212.77
A117: Serviço | B117: 7.28 | C117: SINAPI | D117: 101875 | E117: QUADRO DE DISTRIBUIÇÃO DE ENERGIA EM CHAPA DE AÇO GALVANIZADO, DE EMBUTIR, COM BARRAMENTO TRIFÁSICO, PARA 12 DISJUNTORES DIN 100A - FORNECIMENTO E INSTALAÇÃO. AF_10/2020 | F117: =R117 -> 1.00 | G117: UN | H117: 453.81 | I117: 453.81 | J117: 24.00% | K117: =ROUND(I117,2)+(ROUND(I117,2)*J117) -> 562.7244 | L117: =ROUND(S117,2) -> 562.72 | N117: 16 | O117: QUADROS E DISPOSITIVOS ELÉTRICOS | P117: 2 | Q117: EDIFICAÇÃO | R117: 1.00 | S117: =ROUND(K117,2)*R117 -> 562.72
A118: Serviço | B118: 7.29 | C118: SINAPI | D118: 101881 | E118: QUADRO DE DISTRIBUIÇÃO DE ENERGIA EM CHAPA DE AÇO GALVANIZADO, DE EMBUTIR, COM BARRAMENTO TRIFÁSICO, PARA 40 DISJUNTORES DIN 100A - FORNECIMENTO E INSTALAÇÃO. AF_10/2020 | F118: =R118 -> 1.00 | G118: UN | H118: 1089.1 | I118: 1089.1 | J118: 24.00% | K118: =ROUND(I118,2)+(ROUND(I118,2)*J118) -> 1350.484 | L118: =ROUND(S118,2) -> 1350.48 | N118: 16 | O118: QUADROS E DISPOSITIVOS ELÉTRICOS | P118: 2 | Q118: EDIFICAÇÃO | R118: 1.00 | S118: =ROUND(K118,2)*R118 -> 1350.48
A119: Serviço | B119: 7.30 | C119: Composição | D119: LUM-PLF-12W | E119: LUMINÁRIA TIPO PLAFON QUADRADA, DE SOBREPOR, COM LED DE 12 W - FORNECIMENTO E INSTALAÇÃO. (ref. 103783) | F119: =R119 -> 22.00 | G119: UN | H119: 40.47 | I119: 40.47 | J119: 24.00% | K119: =ROUND(I119,2)+(ROUND(I119,2)*J119) -> 50.1828 | L119: =ROUND(S119,2) -> 1103.96 | N119: 17 | O119: LUMINÁRIAS | P119: 2 | Q119: EDIFICAÇÃO | R119: 22.00 | S119: =ROUND(K119,2)*R119 -> 1103.96
A120: Serviço | B120: 7.31 | C120: Composição | D120: LUM-PLF-30W | E120: LUMINÁRIA TIPO PLAFON QUADRADA, DE SOBREPOR, COM LED DE 30 W - FORNECIMENTO E INSTALAÇÃO. (ref. 103785) | F120: =R120 -> 30.00 | G120: UN | H120: 156.05 | I120: 156.05 | J120: 24.00% | K120: =ROUND(I120,2)+(ROUND(I120,2)*J120) -> 193.502 | L120: =ROUND(S120,2) -> 5805 | N120: 17 | O120: LUMINÁRIAS | P120: 2 | Q120: EDIFICAÇÃO | R120: 30.00 | S120: =ROUND(K120,2)*R120 -> 5805
A121: Serviço | B121: 7.32 | C121: Composição | D121: LUM-RFL-100W | E121: LUMINÁRIA TIPO REFLETOR LED DE 100 W - FORNECIMENTO E INSTALAÇÃO. (ref. 103785) | F121: =R121 -> 7.00 | G121: UN | H121: 66.43 | I121: 66.43 | J121: 24.00% | K121: =ROUND(I121,2)+(ROUND(I121,2)*J121) -> 82.3732 | L121: =ROUND(S121,2) -> 576.59 | N121: 17 | O121: LUMINÁRIAS | P121: 2 | Q121: EDIFICAÇÃO | R121: 7.00 | S121: =ROUND(K121,2)*R121 -> 576.59
A122: Serviço | B122: 7.33 | C122: SINAPI | D122: 91940 | E122: CAIXA RETANGULAR 4" X 2" MÉDIA (1,30 M DO PISO), PVC, INSTALADA EM PAREDE - FORNECIMENTO E INSTALAÇÃO. AF_03/2023 | F122: =R122 -> 59.00 | G122: UN | H122: 17.92 | I122: 17.92 | J122: 24.00% | K122: =ROUND(I122,2)+(ROUND(I122,2)*J122) -> 22.2208 | L122: =ROUND(S122,2) -> 1310.98 | N122: 15 | O122: ELETRODUTOS E CAIXAS | P122: 2 | Q122: EDIFICAÇÃO | R122: 59.00 | S122: =ROUND(K122,2)*R122 -> 1310.98
A123: Serviço | B123: 7.34 | C123: SINAPI | D123: 91937 | E123: CAIXA OCTOGONAL 3" X 3", PVC, INSTALADA EM LAJE - FORNECIMENTO E INSTALAÇÃO. AF_03/2023 | F123: =R123 -> 52.00 | G123: UN | H123: 15.83 | I123: 15.83 | J123: 24.00% | K123: =ROUND(I123,2)+(ROUND(I123,2)*J123) -> 19.6292 | L123: =ROUND(S123,2) -> 1020.76 | N123: 15 | O123: ELETRODUTOS E CAIXAS | P123: 2 | Q123: EDIFICAÇÃO | R123: 52.00 | S123: =ROUND(K123,2)*R123 -> 1020.76
A124: Serviço | B124: 7.35 | C124: SINAPI | D124: 97886 | E124: CAIXA ENTERRADA ELÉTRICA RETANGULAR, EM ALVENARIA COM TIJOLOS CERÂMICOS MACIÇOS, FUNDO COM BRITA, DIMENSÕES INTERNAS: 0,3X0,3X0,3 M. AF_12/2020 | F124: =R124 -> 6.00 | G124: UN | H124: 173.2 | I124: 173.2 | J124: 24.00% | K124: =ROUND(I124,2)+(ROUND(I124,2)*J124) -> 214.768 | L124: =ROUND(S124,2) -> 1288.62 | N124: 15 | O124: ELETRODUTOS E CAIXAS | P124: 2 | Q124: EDIFICAÇÃO | R124: 6.00 | S124: =ROUND(K124,2)*R124 -> 1288.62
A125: Macrosserviço | B125: 8 | E125: INSTALAÇÕES CABEAMENTO ESTRUTURADO (APENAS INFRAESTRUTURA) | L125: =ROUND(L126,2)+ROUND(L127,2)+ROUND(L128,2)+ROUND(L129,2) -> 1393.44
A126: Serviço | B126: 8.1 | C126: SINAPI | D126: 91940 | E126: CAIXA RETANGULAR 4" X 2" MÉDIA (1,30 M DO PISO), PVC, INSTALADA EM PAREDE - FORNECIMENTO E INSTALAÇÃO. AF_03/2023 | F126: =R126 -> 5.00 | G126: UN | H126: 17.92 | I126: 17.92 | J126: 24.00% | K126: =ROUND(I126,2)+(ROUND(I126,2)*J126) -> 22.2208 | L126: =ROUND(S126,2) -> 111.1 | N126: 15 | O126: ELETRODUTOS E CAIXAS | P126: 2 | Q126: EDIFICAÇÃO | R126: 5.00 | S126: =ROUND(K126,2)*R126 -> 111.1
A127: Serviço | B127: 8.2 | C127: SINAPI | D127: 100556 | E127: CAIXA DE PASSAGEM PARA TELEFONE 15X15X10CM (SOBREPOR), FORNECIMENTO E INSTALACAO. AF_11/2019 | F127: =R127 -> 3.00 | G127: UN | H127: 43.82 | I127: 43.82 | J127: 24.00% | K127: =ROUND(I127,2)+(ROUND(I127,2)*J127) -> 54.3368 | L127: =ROUND(S127,2) -> 163.02 | N127: 15 | O127: ELETRODUTOS E CAIXAS | P127: 2 | Q127: EDIFICAÇÃO | R127: 3.00 | S127: =ROUND(K127,2)*R127 -> 163.02
A128: Serviço | B128: 8.3 | C128: SINAPI | D128: 91847 | E128: ELETRODUTO FLEXÍVEL CORRUGADO REFORÇADO, PVC, DN 32 MM (1"), PARA CIRCUITOS TERMINAIS, INSTALADO EM LAJE - FORNECIMENTO E INSTALAÇÃO. AF_03/2023 | F128: =R128 -> 53.30 | G128: M | H128: 12.75 | I128: 12.75 | J128: 24.00% | K128: =ROUND(I128,2)+(ROUND(I128,2)*J128) -> 15.81 | L128: =ROUND(S128,2) -> 842.67 | N128: 15 | O128: ELETRODUTOS E CAIXAS | P128: 2 | Q128: EDIFICAÇÃO | R128: 53.30 | S128: =ROUND(K128,2)*R128 -> 842.673
A129: Serviço | B129: 8.4 | C129: SINAPI | D129: 98307 | E129: TOMADA DE REDE RJ45 - FORNECIMENTO E INSTALAÇÃO. AF_11/2019 | F129: =R129 -> 5.00 | G129: UN | H129: 44.62 | I129: 44.62 | J129: 24.00% | K129: =ROUND(I129,2)+(ROUND(I129,2)*J129) -> 55.3288 | L129: =ROUND(S129,2) -> 276.65 | N129: 16 | O129: QUADROS E DISPOSITIVOS ELÉTRICOS | P129: 2 | Q129: EDIFICAÇÃO | R129: 5.00 | S129: =ROUND(K129,2)*R129 -> 276.65
A130: Macrosserviço | B130: 9 | E130: INSTALAÇÕES HIDRÁULICAS | L130: =ROUND(L131,2)+ROUND(L132,2)+ROUND(L133,2)+ROUND(L134,2)+ROUND(L135,2)+ROUND(L136,2)+ROUND(L137,2)+ROUND(L138,2)+ROUND(L139,2)+ROUND(L140,2)+ROUND(L141,2)+ROUND(L142,2)+ROUND(L143,2)+ROUND(L144,2)+ROUND(L145,2)+ROUND(L146,2)+ROUND(L147,2)+ROUND(L148,2)+ROUND(L149,2)+ROUND(L150,2)+ROUND(L151,2)+ROUND(L152,2)+ROUND(L153,2)+ROUND(L154,2)+ROUND(L155,2)+ROUND(L156,2)+ROUND(L157,2)+ROUND(L158,2)+ROUND(L159,2)+ROUND(L160,2)+ROUND(L161,2)+ROUND(L162,2)+ROUND(L163,2)+ROUND(L164,2)+ROUND(L165,2)+ROUND(L166,2)+ROUND(L167,2)+ROUND(L168,2)+ROUND(L169,2)+ROUND(L170,2)+ROUND(L171,2)+ROUND(L172,2)+ROUND(L173,2)+ROUND(L174,2) -> 19121.34
A131: Serviço | B131: 9.1 | C131: SINAPI | D131: 89987 | E131: REGISTRO DE GAVETA BRUTO, LATÃO, ROSCÁVEL, 3/4", COM ACABAMENTO E CANOPLA CROMADOS - FORNECIMENTO E INSTALAÇÃO. AF_08/2021 | F131: =R131 -> 16.00 | G131: UN | H131: 87.74 | I131: 87.74 | J131: 24.00% | K131: =ROUND(I131,2)+(ROUND(I131,2)*J131) -> 108.7976 | L131: =ROUND(S131,2) -> 1740.8 | N131: 18 | O131: HIDRÁULICA - TÉRREO | P131: 2 | Q131: EDIFICAÇÃO | R131: 16.00 | S131: =ROUND(K131,2)*R131 -> 1740.8
A132: Serviço | B132: 9.2 | C132: SINAPI | D132: 89351 | E132: REGISTRO DE PRESSÃO BRUTO, LATÃO, ROSCÁVEL, 3/4'' - FORNECIMENTO E INSTALAÇÃO. AF_08/2021 | F132: =R132 -> 6.00 | G132: UN | H132: 30.75 | I132: 30.75 | J132: 24.00% | K132: =ROUND(I132,2)+(ROUND(I132,2)*J132) -> 38.13 | L132: =ROUND(S132,2) -> 228.78 | N132: 18 | O132: HIDRÁULICA - TÉRREO | P132: 2 | Q132: EDIFICAÇÃO | R132: 6.00 | S132: =ROUND(K132,2)*R132 -> 228.78
A133: Serviço | B133: 9.3 | C133: SINAPI | D133: 89383 | E133: ADAPTADOR CURTO COM BOLSA E ROSCA PARA REGISTRO, PVC, SOLDÁVEL, DN 25MM X 3/4, INSTALADO EM RAMAL OU SUB-RAMAL DE ÁGUA - FORNECIMENTO E INSTALAÇÃO. AF_06/2022 | F133: =R133 -> 38.00 | G133: UN | H133: 6.53 | I133: 6.53 | J133: 24.00% | K133: =ROUND(I133,2)+(ROUND(I133,2)*J133) -> 8.0972 | L133: =ROUND(S133,2) -> 307.8 | N133: 18 | O133: HIDRÁULICA - TÉRREO | P133: 2 | Q133: EDIFICAÇÃO | R133: 38.00 | S133: =ROUND(K133,2)*R133 -> 307.8
A134: Serviço | B134: 9.4 | C134: SINAPI | D134: 89362 | E134: JOELHO 90 GRAUS, PVC, SOLDÁVEL, DN 25MM, INSTALADO EM RAMAL OU SUB-RAMAL DE ÁGUA - FORNECIMENTO E INSTALAÇÃO. AF_06/2022 | F134: =R134 -> 35.00 | G134: UN | H134: 9.34 | I134: 9.34 | J134: 24.00% | K134: =ROUND(I134,2)+(ROUND(I134,2)*J134) -> 11.5816 | L134: =ROUND(S134,2) -> 405.3 | N134: 18 | O134: HIDRÁULICA - TÉRREO | P134: 2 | Q134: EDIFICAÇÃO | R134: 35.00 | S134: =ROUND(K134,2)*R134 -> 405.3
A135: Serviço | B135: 9.5 | C135: SINAPI | D135: 89378 | E135: LUVA, PVC, SOLDÁVEL, DN 25MM, INSTALADO EM RAMAL OU SUB-RAMAL DE ÁGUA - FORNECIMENTO E INSTALAÇÃO. AF_06/2022 | F135: =R135 -> 16.00 | G135: UN | H135: 6.97 | I135: 6.97 | J135: 24.00% | K135: =ROUND(I135,2)+(ROUND(I135,2)*J135) -> 8.6428 | L135: =ROUND(S135,2) -> 138.24 | N135: 18 | O135: HIDRÁULICA - TÉRREO | P135: 2 | Q135: EDIFICAÇÃO | R135: 16.00 | S135: =ROUND(K135,2)*R135 -> 138.24
A136: Serviço | B136: 9.6 | C136: SINAPI | D136: 89356 | E136: TUBO, PVC, SOLDÁVEL, DE 25MM, INSTALADO EM RAMAL OU SUB-RAMAL DE ÁGUA - FORNECIMENTO E INSTALAÇÃO. AF_06/2022 | F136: =R136 -> 72.06 | G136: M | H136: 22.68 | I136: 22.68 | J136: 24.00% | K136: =ROUND(I136,2)+(ROUND(I136,2)*J136) -> 28.1232 | L136: =ROUND(S136,2) -> 2026.33 | N136: 18 | O136: HIDRÁULICA - TÉRREO | P136: 2 | Q136: EDIFICAÇÃO | R136: 72.06 | S136: =ROUND(K136,2)*R136 -> 2026.3272
A137: Serviço | B137: 9.7 | C137: SINAPI | D137: 89395 | E137: TE, PVC, SOLDÁVEL, DN 25MM, INSTALADO EM RAMAL OU SUB-RAMAL DE ÁGUA - FORNECIMENTO E INSTALAÇÃO. AF_06/2022 | F137: =R137 -> 19.00 | G137: UN | H137: 12.89 | I137: 12.89 | J137: 24.00% | K137: =ROUND(I137,2)+(ROUND(I137,2)*J137) -> 15.9836 | L137: =ROUND(S137,2) -> 303.62 | N137: 18 | O137: HIDRÁULICA - TÉRREO | P137: 2 | Q137: EDIFICAÇÃO | R137: 19.00 | S137: =ROUND(K137,2)*R137 -> 303.62
A138: Serviço | B138: 9.8 | C138: SINAPI | D138: 89366 | E138: JOELHO 90 GRAUS COM BUCHA DE LATÃO, PVC, SOLDÁVEL, DN 25MM, X 3/4 INSTALADO EM RAMAL OU SUB-RAMAL DE ÁGUA - FORNECIMENTO E INSTALAÇÃO. AF_06/2022 | F138: =R138 -> 18.00 | G138: UN | H138: 15.6 | I138: 15.6 | J138: 24.00% | K138: =ROUND(I138,2)+(ROUND(I138,2)*J138) -> 19.344 | L138: =ROUND(S138,2) -> 348.12 | N138: 18 | O138: HIDRÁULICA - TÉRREO | P138: 2 | Q138: EDIFICAÇÃO | R138: 18.00 | S138: =ROUND(K138,2)*R138 -> 348.12
A139: Serviço | B139: 9.9 | C139: SINAPI | D139: 90373 | E139: JOELHO 90 GRAUS COM BUCHA DE LATÃO, PVC, SOLDÁVEL, DN 25MM, X 1/2 INSTALADO EM RAMAL OU SUB-RAMAL DE ÁGUA - FORNECIMENTO E INSTALAÇÃO. AF_06/2022 | F139: =R139 -> 17.00 | G139: UN | H139: 12.53 | I139: 12.53 | J139: 24.00% | K139: =ROUND(I139,2)+(ROUND(I139,2)*J139) -> 15.5372 | L139: =ROUND(S139,2) -> 264.18 | N139: 18 | O139: HIDRÁULICA - TÉRREO | P139: 2 | Q139: EDIFICAÇÃO | R139: 17.00 | S139: =ROUND(K139,2)*R139 -> 264.18
A140: Serviço | B140: 9.10 | C140: SINAPI | D140: 104056 | E140: REGISTRO ESFERA, PVC, COM ROSCA, 1/2", PARA LIGAÇÃO PREDIAL DE ÁGUA. AF_06/2022 | F140: =R140 -> 1.00 | G140: UN | H140: 17.67 | I140: 17.67 | J140: 24.00% | K140: =ROUND(I140,2)+(ROUND(I140,2)*J140) -> 21.9108 | L140: =ROUND(S140,2) -> 21.91 | N140: 20 | O140: HIDRÁULICA - ALIMENTAÇÃO | P140: 2 | Q140: EDIFICAÇÃO | R140: 1.00 | S140: =ROUND(K140,2)*R140 -> 21.91
A141: Serviço | B141: 9.11 | C141: SINAPI | D141: 89353 | E141: REGISTRO DE GAVETA BRUTO, LATÃO, ROSCÁVEL, 3/4" - FORNECIMENTO E INSTALAÇÃO. AF_08/2021 | F141: =R141 -> 2.00 | G141: UN | H141: 36.99 | I141: 36.99 | J141: 24.00% | K141: =ROUND(I141,2)+(ROUND(I141,2)*J141) -> 45.8676 | L141: =ROUND(S141,2) -> 91.74 | N141: 20 | O141: HIDRÁULICA - ALIMENTAÇÃO | P141: 2 | Q141: EDIFICAÇÃO | R141: 2.00 | S141: =ROUND(K141,2)*R141 -> 91.74
A142: Serviço | B142: 9.12 | C142: SINAPI | D142: 94489 | E142: REGISTRO DE ESFERA, PVC, SOLDÁVEL, COM VOLANTE, DN 25 MM - FORNECIMENTO E INSTALAÇÃO. AF_08/2021 | F142: =R142 -> 1.00 | G142: UN | H142: 24.09 | I142: 24.09 | J142: 24.00% | K142: =ROUND(I142,2)+(ROUND(I142,2)*J142) -> 29.8716 | L142: =ROUND(S142,2) -> 29.87 | N142: 20 | O142: HIDRÁULICA - ALIMENTAÇÃO | P142: 2 | Q142: EDIFICAÇÃO | R142: 1.00 | S142: =ROUND(K142,2)*R142 -> 29.87
A143: Serviço | B143: 9.13 | C143: SINAPI | D143: 103041 | E143: REGISTRO DE ESFERA, PVC, ROSCÁVEL, COM BORBOLETA, 1/2" - FORNECIMENTO E INSTALAÇÃO. AF_08/2021 | F143: =R143 -> 1.00 | G143: UN | H143: 15.78 | I143: 15.78 | J143: 24.00% | K143: =ROUND(I143,2)+(ROUND(I143,2)*J143) -> 19.5672 | L143: =ROUND(S143,2) -> 19.57 | N143: 20 | O143: HIDRÁULICA - ALIMENTAÇÃO | P143: 2 | Q143: EDIFICAÇÃO | R143: 1.00 | S143: =ROUND(K143,2)*R143 -> 19.57
A144: Serviço | B144: 9.14 | C144: SINAPI | D144: 99628 | E144: VÁLVULA DE RETENÇÃO VERTICAL, DE BRONZE, ROSCÁVEL, 3/4" - FORNECIMENTO E INSTALAÇÃO. AF_08/2021 | F144: =R144 -> 1.00 | G144: UN | H144: 92.78 | I144: 92.78 | J144: 24.00% | K144: =ROUND(I144,2)+(ROUND(I144,2)*J144) -> 115.0472 | L144: =ROUND(S144,2) -> 115.05 | N144: 20 | O144: HIDRÁULICA - ALIMENTAÇÃO | P144: 2 | Q144: EDIFICAÇÃO | R144: 1.00 | S144: =ROUND(K144,2)*R144 -> 115.05
A145: Serviço | B145: 9.15 | C145: SINAPI | D145: 104031 | E145: COLAR DE TOMADA, PVC, COM TRAVAS, DE 60 MM X 1/2" OU 60 MM X 3/4", PARA LIGAÇÃO PREDIAL DE ÁGUA. AF_06/2022 | F145: =R145 -> 1.00 | G145: UN | H145: 16.57 | I145: 16.57 | J145: 24.00% | K145: =ROUND(I145,2)+(ROUND(I145,2)*J145) -> 20.5468 | L145: =ROUND(S145,2) -> 20.55 | N145: 20 | O145: HIDRÁULICA - ALIMENTAÇÃO | P145: 2 | Q145: EDIFICAÇÃO | R145: 1.00 | S145: =ROUND(K145,2)*R145 -> 20.55
A146: Serviço | B146: 9.16 | C146: SINAPI | D146: 103952 | E146: BUCHA DE REDUÇÃO, CURTA, PVC, SOLDÁVEL, DN 25 X 20 MM, INSTALADO EM RAMAL DE DISTRIBUIÇÃO DE ÁGUA - FORNECIMENTO E INSTALAÇÃO. AF_06/2022 | F146: =R146 -> 4.00 | G146: UN | H146: 5.75 | I146: 5.75 | J146: 24.00% | K146: =ROUND(I146,2)+(ROUND(I146,2)*J146) -> 7.13 | L146: =ROUND(S146,2) -> 28.52 | N146: 20 | O146: HIDRÁULICA - ALIMENTAÇÃO | P146: 2 | Q146: EDIFICAÇÃO | R146: 4.00 | S146: =ROUND(K146,2)*R146 -> 28.52
A147: Serviço | B147: 9.17 | C147: SINAPI | D147: 90373 | E147: JOELHO 90 GRAUS COM BUCHA DE LATÃO, PVC, SOLDÁVEL, DN 25MM, X 1/2 INSTALADO EM RAMAL OU SUB-RAMAL DE ÁGUA - FORNECIMENTO E INSTALAÇÃO. AF_06/2022 | F147: =R147 -> 4.00 | G147: UN | H147: 12.53 | I147: 12.53 | J147: 24.00% | K147: =ROUND(I147,2)+(ROUND(I147,2)*J147) -> 15.5372 | L147: =ROUND(S147,2) -> 62.16 | N147: 20 | O147: HIDRÁULICA - ALIMENTAÇÃO | P147: 2 | Q147: EDIFICAÇÃO | R147: 4.00 | S147: =ROUND(K147,2)*R147 -> 62.16
A148: Serviço | B148: 9.18 | C148: SINAPI | D148: 94783 | E148: ADAPTADOR COM FLANGE E ANEL DE VEDAÇÃO, PVC, SOLDÁVEL, DN 20 MM X 1/2", INSTALADO EM RESERVAÇÃO PREDIAL DE ÁGUA - FORNECIMENTO E INSTALAÇÃO. AF_04/2024 | F148: =R148 -> 1.00 | G148: UN | H148: 17.46 | I148: 17.46 | J148: 24.00% | K148: =ROUND(I148,2)+(ROUND(I148,2)*J148) -> 21.6504 | L148: =ROUND(S148,2) -> 21.65 | N148: 20 | O148: HIDRÁULICA - ALIMENTAÇÃO | P148: 2 | Q148: EDIFICAÇÃO | R148: 1.00 | S148: =ROUND(K148,2)*R148 -> 21.65
A149: Serviço | B149: 9.19 | C149: SINAPI | D149: 94703 | E149: ADAPTADOR COM FLANGE E ANEL DE VEDAÇÃO, PVC, SOLDÁVEL, DN 25 MM X 3/4", INSTALADO EM RESERVAÇÃO PREDIAL DE ÁGUA - FORNECIMENTO E INSTALAÇÃO. AF_04/2024 | F149: =R149 -> 1.00 | G149: UN | H149: 18.7 | I149: 18.7 | J149: 24.00% | K149: =ROUND(I149,2)+(ROUND(I149,2)*J149) -> 23.188 | L149: =ROUND(S149,2) -> 23.19 | N149: 20 | O149: HIDRÁULICA - ALIMENTAÇÃO | P149: 2 | Q149: EDIFICAÇÃO | R149: 1.00 | S149: =ROUND(K149,2)*R149 -> 23.19
A150: Serviço | B150: 9.20 | C150: SINAPI | D150: 89376 | E150: ADAPTADOR CURTO COM BOLSA E ROSCA PARA REGISTRO, PVC, SOLDÁVEL, DN 20MM X 1/2, INSTALADO EM RAMAL OU SUB-RAMAL DE ÁGUA - FORNECIMENTO E INSTALAÇÃO. AF_06/2022 | F150: =R150 -> 2.00 | G150: UN | H150: 5.6 | I150: 5.6 | J150: 24.00% | K150: =ROUND(I150,2)+(ROUND(I150,2)*J150) -> 6.944 | L150: =ROUND(S150,2) -> 13.88 | N150: 20 | O150: HIDRÁULICA - ALIMENTAÇÃO | P150: 2 | Q150: EDIFICAÇÃO | R150: 2.00 | S150: =ROUND(K150,2)*R150 -> 13.88
A151: Serviço | B151: 9.21 | C151: SINAPI | D151: 89383 | E151: ADAPTADOR CURTO COM BOLSA E ROSCA PARA REGISTRO, PVC, SOLDÁVEL, DN 25MM X 3/4, INSTALADO EM RAMAL OU SUB-RAMAL DE ÁGUA - FORNECIMENTO E INSTALAÇÃO. AF_06/2022 | F151: =R151 -> 6.00 | G151: UN | H151: 6.53 | I151: 6.53 | J151: 24.00% | K151: =ROUND(I151,2)+(ROUND(I151,2)*J151) -> 8.0972 | L151: =ROUND(S151,2) -> 48.6 | N151: 20 | O151: HIDRÁULICA - ALIMENTAÇÃO | P151: 2 | Q151: EDIFICAÇÃO | R151: 6.00 | S151: =ROUND(K151,2)*R151 -> 48.6
A152: Serviço | B152: 9.22 | C152: SINAPI | D152: 89358 | E152: JOELHO 90 GRAUS, PVC, SOLDÁVEL, DN 20MM, INSTALADO EM RAMAL OU SUB-RAMAL DE ÁGUA - FORNECIMENTO E INSTALAÇÃO. AF_06/2022 | F152: =R152 -> 1.00 | G152: UN | H152: 7.82 | I152: 7.82 | J152: 24.00% | K152: =ROUND(I152,2)+(ROUND(I152,2)*J152) -> 9.6968 | L152: =ROUND(S152,2) -> 9.7 | N152: 20 | O152: HIDRÁULICA - ALIMENTAÇÃO | P152: 2 | Q152: EDIFICAÇÃO | R152: 1.00 | S152: =ROUND(K152,2)*R152 -> 9.7
A153: Serviço | B153: 9.23 | C153: SINAPI | D153: 89362 | E153: JOELHO 90 GRAUS, PVC, SOLDÁVEL, DN 25MM, INSTALADO EM RAMAL OU SUB-RAMAL DE ÁGUA - FORNECIMENTO E INSTALAÇÃO. AF_06/2022 | F153: =R153 -> 10.00 | G153: UN | H153: 9.34 | I153: 9.34 | J153: 24.00% | K153: =ROUND(I153,2)+(ROUND(I153,2)*J153) -> 11.5816 | L153: =ROUND(S153,2) -> 115.8 | N153: 20 | O153: HIDRÁULICA - ALIMENTAÇÃO | P153: 2 | Q153: EDIFICAÇÃO | R153: 10.00 | S153: =ROUND(K153,2)*R153 -> 115.8
A154: Serviço | B154: 9.24 | C154: SINAPI | D154: 89355 | E154: TUBO, PVC, SOLDÁVEL, DE 20MM, INSTALADO EM RAMAL OU SUB-RAMAL DE ÁGUA - FORNECIMENTO E INSTALAÇÃO. AF_06/2022 | F154: =R154 -> 31.85 | G154: M | H154: 19.67 | I154: 19.67 | J154: 24.00% | K154: =ROUND(I154,2)+(ROUND(I154,2)*J154) -> 24.3908 | L154: =ROUND(S154,2) -> 776.82 | N154: 20 | O154: HIDRÁULICA - ALIMENTAÇÃO | P154: 2 | Q154: EDIFICAÇÃO | R154: 31.85 | S154: =ROUND(K154,2)*R154 -> 776.8215
A155: Serviço | B155: 9.25 | C155: SINAPI | D155: 89356 | E155: TUBO, PVC, SOLDÁVEL, DE 25MM, INSTALADO EM RAMAL OU SUB-RAMAL DE ÁGUA - FORNECIMENTO E INSTALAÇÃO. AF_06/2022 | F155: =R155 -> 33.56 | G155: M | H155: 22.68 | I155: 22.68 | J155: 24.00% | K155: =ROUND(I155,2)+(ROUND(I155,2)*J155) -> 28.1232 | L155: =ROUND(S155,2) -> 943.71 | N155: 20 | O155: HIDRÁULICA - ALIMENTAÇÃO | P155: 2 | Q155: EDIFICAÇÃO | R155: 33.56 | S155: =ROUND(K155,2)*R155 -> 943.7072
A156: Serviço | B156: 9.26 | C156: SINAPI | D156: 89393 | E156: TE, PVC, SOLDÁVEL, DN 20MM, INSTALADO EM RAMAL OU SUB-RAMAL DE ÁGUA - FORNECIMENTO E INSTALAÇÃO. AF_06/2022 | F156: =R156 -> 1.00 | G156: UN | H156: 10.86 | I156: 10.86 | J156: 24.00% | K156: =ROUND(I156,2)+(ROUND(I156,2)*J156) -> 13.4664 | L156: =ROUND(S156,2) -> 13.47 | N156: 20 | O156: HIDRÁULICA - ALIMENTAÇÃO | P156: 2 | Q156: EDIFICAÇÃO | R156: 1.00 | S156: =ROUND(K156,2)*R156 -> 13.47
A157: Serviço | B157: 9.27 | C157: SINAPI | D157: 89395 | E157: TE, PVC, SOLDÁVEL, DN 25MM, INSTALADO EM RAMAL OU SUB-RAMAL DE ÁGUA - FORNECIMENTO E INSTALAÇÃO. AF_06/2022 | F157: =R157 -> 1.00 | G157: UN | H157: 12.89 | I157: 12.89 | J157: 24.00% | K157: =ROUND(I157,2)+(ROUND(I157,2)*J157) -> 15.9836 | L157: =ROUND(S157,2) -> 15.98 | N157: 20 | O157: HIDRÁULICA - ALIMENTAÇÃO | P157: 2 | Q157: EDIFICAÇÃO | R157: 1.00 | S157: =ROUND(K157,2)*R157 -> 15.98
A158: Serviço | B158: 9.28 | C158: SINAPI | D158: 102111 | E158: BOMBA CENTRÍFUGA, MONOFÁSICA, 0,5 CV OU 0,49 HP, HM 6 A 20 M, Q 1,2 A 8,3 M3/H - FORNECIMENTO E INSTALAÇÃO. AF_12/2020 | F158: =R158 -> 1.00 | G158: UN | H158: 971.13 | I158: 971.13 | J158: 24.00% | K158: =ROUND(I158,2)+(ROUND(I158,2)*J158) -> 1204.2012 | L158: =ROUND(S158,2) -> 1204.2 | N158: 20 | O158: HIDRÁULICA - ALIMENTAÇÃO | P158: 2 | Q158: EDIFICAÇÃO | R158: 1.00 | S158: =ROUND(K158,2)*R158 -> 1204.2
A159: Serviço | B159: 9.29 | C159: SINAPI | D159: 94492 | E159: REGISTRO DE ESFERA, PVC, SOLDÁVEL, COM VOLANTE, DN 50 MM - FORNECIMENTO E INSTALAÇÃO. AF_08/2021 | F159: =R159 -> 4.00 | G159: UN | H159: 49.23 | I159: 49.23 | J159: 24.00% | K159: =ROUND(I159,2)+(ROUND(I159,2)*J159) -> 61.0452 | L159: =ROUND(S159,2) -> 244.2 | N159: 19 | O159: HIDRÁULICA - COBERTURA | P159: 2 | Q159: EDIFICAÇÃO | R159: 4.00 | S159: =ROUND(K159,2)*R159 -> 244.2
A160: Serviço | B160: 9.30 | C160: SINAPI | D160: 94704 | E160: ADAPTADOR COM FLANGE E ANEL DE VEDAÇÃO, PVC, SOLDÁVEL, DN 32 MM X 1", INSTALADO EM RESERVAÇÃO PREDIAL DE ÁGUA - FORNECIMENTO E INSTALAÇÃO. AF_04/2024 | F160: =R160 -> 2.00 | G160: UN | H160: 24.98 | I160: 24.98 | J160: 24.00% | K160: =ROUND(I160,2)+(ROUND(I160,2)*J160) -> 30.9752 | L160: =ROUND(S160,2) -> 61.96 | N160: 19 | O160: HIDRÁULICA - COBERTURA | P160: 2 | Q160: EDIFICAÇÃO | R160: 2.00 | S160: =ROUND(K160,2)*R160 -> 61.96
A161: Serviço | B161: 9.31 | C161: SINAPI | D161: 94706 | E161: ADAPTADOR COM FLANGE E ANEL DE VEDAÇÃO, PVC, SOLDÁVEL, DN 50 MM X 1 1/2", INSTALADO EM RESERVAÇÃO PREDIAL DE ÁGUA - FORNECIMENTO E INSTALAÇÃO. AF_04/2024 | F161: =R161 -> 5.00 | G161: UN | H161: 33.49 | I161: 33.49 | J161: 24.00% | K161: =ROUND(I161,2)+(ROUND(I161,2)*J161) -> 41.5276 | L161: =ROUND(S161,2) -> 207.65 | N161: 19 | O161: HIDRÁULICA - COBERTURA | P161: 2 | Q161: EDIFICAÇÃO | R161: 5.00 | S161: =ROUND(K161,2)*R161 -> 207.65
A162: Serviço | B162: 9.32 | C162: SINAPI | D162: 103999 | E162: BUCHA DE REDUÇÃO, LONGA, PVC, SOLDÁVEL, DN 50 X 25 MM, INSTALADO EM RAMAL DE DISTRIBUIÇÃO DE ÁGUA - FORNECIMENTO E INSTALAÇÃO. AF_06/2022 | F162: =R162 -> 3.00 | G162: UN | H162: 12.19 | I162: 12.19 | J162: 24.00% | K162: =ROUND(I162,2)+(ROUND(I162,2)*J162) -> 15.1156 | L162: =ROUND(S162,2) -> 45.36 | N162: 19 | O162: HIDRÁULICA - COBERTURA | P162: 2 | Q162: EDIFICAÇÃO | R162: 3.00 | S162: =ROUND(K162,2)*R162 -> 45.36
A163: Serviço | B163: 9.33 | C163: SINAPI | D163: 89362 | E163: JOELHO 90 GRAUS, PVC, SOLDÁVEL, DN 25MM, INSTALADO EM RAMAL OU SUB-RAMAL DE ÁGUA - FORNECIMENTO E INSTALAÇÃO. AF_06/2022 | F163: =R163 -> 25.00 | G163: UN | H163: 9.34 | I163: 9.34 | J163: 24.00% | K163: =ROUND(I163,2)+(ROUND(I163,2)*J163) -> 11.5816 | L163: =ROUND(S163,2) -> 289.5 | N163: 19 | O163: HIDRÁULICA - COBERTURA | P163: 2 | Q163: EDIFICAÇÃO | R163: 25.00 | S163: =ROUND(K163,2)*R163 -> 289.5
A164: Serviço | B164: 9.34 | C164: SINAPI | D164: 89367 | E164: JOELHO 90 GRAUS, PVC, SOLDÁVEL, DN 32MM, INSTALADO EM RAMAL OU SUB-RAMAL DE ÁGUA - FORNECIMENTO E INSTALAÇÃO. AF_06/2022 | F164: =R164 -> 2.00 | G164: UN | H164: 12.8 | I164: 12.8 | J164: 24.00% | K164: =ROUND(I164,2)+(ROUND(I164,2)*J164) -> 15.872 | L164: =ROUND(S164,2) -> 31.74 | N164: 19 | O164: HIDRÁULICA - COBERTURA | P164: 2 | Q164: EDIFICAÇÃO | R164: 2.00 | S164: =ROUND(K164,2)*R164 -> 31.74
A165: Serviço | B165: 9.35 | C165: SINAPI | D165: 103984 | E165: JOELHO 90 GRAUS, PVC, SOLDÁVEL, DN 50MM, INSTALADO EM RAMAL DE DISTRIBUIÇÃO DE ÁGUA - FORNECIMENTO E INSTALAÇÃO. AF_06/2022 | F165: =R165 -> 5.00 | G165: UN | H165: 19.08 | I165: 19.08 | J165: 24.00% | K165: =ROUND(I165,2)+(ROUND(I165,2)*J165) -> 23.6592 | L165: =ROUND(S165,2) -> 118.3 | N165: 19 | O165: HIDRÁULICA - COBERTURA | P165: 2 | Q165: EDIFICAÇÃO | R165: 5.00 | S165: =ROUND(K165,2)*R165 -> 118.3
A166: Serviço | B166: 9.36 | C166: SINAPI | D166: 89356 | E166: TUBO, PVC, SOLDÁVEL, DE 25MM, INSTALADO EM RAMAL OU SUB-RAMAL DE ÁGUA - FORNECIMENTO E INSTALAÇÃO. AF_06/2022 | F166: =R166 -> 48.00 | G166: M | H166: 22.68 | I166: 22.68 | J166: 24.00% | K166: =ROUND(I166,2)+(ROUND(I166,2)*J166) -> 28.1232 | L166: =ROUND(S166,2) -> 1349.76 | N166: 19 | O166: HIDRÁULICA - COBERTURA | P166: 2 | Q166: EDIFICAÇÃO | R166: 48.00 | S166: =ROUND(K166,2)*R166 -> 1349.76
A167: Serviço | B167: 9.37 | C167: SINAPI | D167: 89357 | E167: TUBO, PVC, SOLDÁVEL, DE 32MM, INSTALADO EM RAMAL OU SUB-RAMAL DE ÁGUA - FORNECIMENTO E INSTALAÇÃO. AF_06/2022 | F167: =R167 -> 1.94 | G167: M | H167: 31.02 | I167: 31.02 | J167: 24.00% | K167: =ROUND(I167,2)+(ROUND(I167,2)*J167) -> 38.4648 | L167: =ROUND(S167,2) -> 74.61 | N167: 19 | O167: HIDRÁULICA - COBERTURA | P167: 2 | Q167: EDIFICAÇÃO | R167: 1.94 | S167: =ROUND(K167,2)*R167 -> 74.6124
A168: Serviço | B168: 9.38 | C168: SINAPI | D168: 103979 | E168: TUBO, PVC, SOLDÁVEL, DE 50MM, INSTALADO EM RAMAL DE DISTRIBUIÇÃO DE ÁGUA - FORNECIMENTO E INSTALAÇÃO. AF_06/2022 | F168: =R168 -> 24.71 | G168: M | H168: 28.31 | I168: 28.31 | J168: 24.00% | K168: =ROUND(I168,2)+(ROUND(I168,2)*J168) -> 35.1044 | L168: =ROUND(S168,2) -> 867.32 | N168: 19 | O168: HIDRÁULICA - COBERTURA | P168: 2 | Q168: EDIFICAÇÃO | R168: 24.71 | S168: =ROUND(K168,2)*R168 -> 867.321
A169: Serviço | B169: 9.39 | C169: SINAPI | D169: 89395 | E169: TE, PVC, SOLDÁVEL, DN 25MM, INSTALADO EM RAMAL OU SUB-RAMAL DE ÁGUA - FORNECIMENTO E INSTALAÇÃO. AF_06/2022 | F169: =R169 -> 3.00 | G169: UN | H169: 12.89 | I169: 12.89 | J169: 24.00% | K169: =ROUND(I169,2)+(ROUND(I169,2)*J169) -> 15.9836 | L169: =ROUND(S169,2) -> 47.94 | N169: 19 | O169: HIDRÁULICA - COBERTURA | P169: 2 | Q169: EDIFICAÇÃO | R169: 3.00 | S169: =ROUND(K169,2)*R169 -> 47.94
A170: Serviço | B170: 9.40 | C170: SINAPI | D170: 104004 | E170: TE, PVC, SOLDÁVEL, DN 50MM, INSTALADO EM RAMAL DE DISTRIBUIÇÃO DE ÁGUA - FORNECIMENTO E INSTALAÇÃO. AF_06/2022 | F170: =R170 -> 2.00 | G170: UN | H170: 28.85 | I170: 28.85 | J170: 24.00% | K170: =ROUND(I170,2)+(ROUND(I170,2)*J170) -> 35.774 | L170: =ROUND(S170,2) -> 71.54 | N170: 19 | O170: HIDRÁULICA - COBERTURA | P170: 2 | Q170: EDIFICAÇÃO | R170: 2.00 | S170: =ROUND(K170,2)*R170 -> 71.54
A171: Serviço | B171: 9.41 | C171: SINAPI | D171: 104006 | E171: TÊ DE REDUÇÃO, PVC, SOLDÁVEL, DN 50MM X 25MM, INSTALADO EM RAMAL DE DISTRIBUIÇÃO DE ÁGUA - FORNECIMENTO E INSTALAÇÃO. AF_06/2022 | F171: =R171 -> 10.00 | G171: UN | H171: 24.26 | I171: 24.26 | J171: 24.00% | K171: =ROUND(I171,2)+(ROUND(I171,2)*J171) -> 30.0824 | L171: =ROUND(S171,2) -> 300.8 | N171: 19 | O171: HIDRÁULICA - COBERTURA | P171: 2 | Q171: EDIFICAÇÃO | R171: 10.00 | S171: =ROUND(K171,2)*R171 -> 300.8
A172: Serviço | B172: 9.42 | C172: SINAPI | D172: 104008 | E172: TE DE REDUÇÃO, 90 GRAUS, PVC, SOLDÁVEL, DN 50 MM X 32 MM, INSTALADO EM RAMAL DE DISTRIBUIÇÃO DE ÁGUA - FORNECIMENTO E INSTALAÇÃO. AF_06/2022 | F172: =R172 -> 2.00 | G172: UN | H172: 30.42 | I172: 30.42 | J172: 24.00% | K172: =ROUND(I172,2)+(ROUND(I172,2)*J172) -> 37.7208 | L172: =ROUND(S172,2) -> 75.44 | N172: 19 | O172: HIDRÁULICA - COBERTURA | P172: 2 | Q172: EDIFICAÇÃO | R172: 2.00 | S172: =ROUND(K172,2)*R172 -> 75.44
A173: Serviço | B173: 9.43 | C173: SINAPI | D173: 102607 | E173: CAIXA D´ÁGUA EM POLIETILENO, 1000 LITROS - FORNECIMENTO E INSTALAÇÃO. AF_06/2021 | F173: =R173 -> 3.00 | G173: UN | H173: 466.71 | I173: 466.71 | J173: 24.00% | K173: =ROUND(I173,2)+(ROUND(I173,2)*J173) -> 578.7204 | L173: =ROUND(S173,2) -> 1736.16 | N173: 19 | O173: HIDRÁULICA - COBERTURA | P173: 2 | Q173: EDIFICAÇÃO | R173: 3.00 | S173: =ROUND(K173,2)*R173 -> 1736.16
A174: Serviço | B174: 9.44 | C174: SINAPI | D174: 102617 | E174: CAIXA D´ÁGUA EM POLIÉSTER REFORÇADO COM FIBRA DE VIDRO, 5000 LITROS - FORNECIMENTO E INSTALAÇÃO. AF_06/2021 | F174: =R174 -> 1.00 | G174: UN | H174: 3435.1 | I174: 3435.1 | J174: 24.00% | K174: =ROUND(I174,2)+(ROUND(I174,2)*J174) -> 4259.524 | L174: =ROUND(S174,2) -> 4259.52 | N174: 19 | O174: HIDRÁULICA - COBERTURA | P174: 2 | Q174: EDIFICAÇÃO | R174: 1.00 | S174: =ROUND(K174,2)*R174 -> 4259.52
A175: Macrosserviço | B175: 10 | E175: INSTALAÇÕES SANITÁRIAS E PLUVIAIS | L175: =ROUND(L176,2)+ROUND(L177,2)+ROUND(L178,2)+ROUND(L179,2)+ROUND(L180,2)+ROUND(L181,2)+ROUND(L182,2)+ROUND(L183,2)+ROUND(L184,2)+ROUND(L185,2)+ROUND(L186,2)+ROUND(L187,2)+ROUND(L188,2)+ROUND(L189,2)+ROUND(L190,2)+ROUND(L191,2)+ROUND(L192,2)+ROUND(L193,2)+ROUND(L194,2)+ROUND(L195,2)+ROUND(L196,2)+ROUND(L197,2)+ROUND(L198,2)+ROUND(L199,2)+ROUND(L200,2)+ROUND(L201,2)+ROUND(L202,2)+ROUND(L203,2)+ROUND(L204,2)+ROUND(L205,2) -> 14659.2
A176: Serviço | B176: 10.1 | C176: SINAPI | D176: 98110 | E176: CAIXA DE GORDURA PEQUENA (CAPACIDADE: 19 L), CIRCULAR, EM PVC, DIÂMETRO INTERNO= 0,3 M. AF_12/2020 | F176: =R176 -> 1.00 | G176: UN | H176: 425.38 | I176: 425.38 | J176: 24.00% | K176: =ROUND(I176,2)+(ROUND(I176,2)*J176) -> 527.4712 | L176: =ROUND(S176,2) -> 527.47 | N176: 21 | O176: INSTALAÇÕES SANITÁRIAS E PLUVIAIS | P176: 2 | Q176: EDIFICAÇÃO | R176: 1.00 | S176: =ROUND(K176,2)*R176 -> 527.47
A177: Serviço | B177: 10.2 | C177: SINAPI | D177: 97902 | E177: CAIXA ENTERRADA HIDRÁULICA RETANGULAR EM ALVENARIA COM TIJOLOS CERÂMICOS MACIÇOS, DIMENSÕES INTERNAS: 0,6X0,6X0,6 M PARA REDE DE ESGOTO. AF_12/2020 | F177: =R177 -> 3.00 | G177: UN | H177: 588.87 | I177: 588.87 | J177: 24.00% | K177: =ROUND(I177,2)+(ROUND(I177,2)*J177) -> 730.1988 | L177: =ROUND(S177,2) -> 2190.6 | N177: 21 | O177: INSTALAÇÕES SANITÁRIAS E PLUVIAIS | P177: 2 | Q177: EDIFICAÇÃO | R177: 3.00 | S177: =ROUND(K177,2)*R177 -> 2190.6
A178: Serviço | B178: 10.3 | C178: SINAPI | D178: 97895 | E178: CAIXA ENTERRADA HIDRÁULICA RETANGULAR, EM CONCRETO PRÉ-MOLDADO, DIMENSÕES INTERNAS: 0,3X0,3X0,3 M. AF_12/2020 | F178: =R178 -> 2.00 | G178: UN | H178: 212.62 | I178: 212.62 | J178: 24.00% | K178: =ROUND(I178,2)+(ROUND(I178,2)*J178) -> 263.6488 | L178: =ROUND(S178,2) -> 527.3 | N178: 21 | O178: INSTALAÇÕES SANITÁRIAS E PLUVIAIS | P178: 2 | Q178: EDIFICAÇÃO | R178: 2.00 | S178: =ROUND(K178,2)*R178 -> 527.3
A179: Serviço | B179: 10.4 | C179: SINAPI | D179: 97895 | E179: CAIXA ENTERRADA HIDRÁULICA RETANGULAR, EM CONCRETO PRÉ-MOLDADO, DIMENSÕES INTERNAS: 0,3X0,3X0,3 M. AF_12/2020 | F179: =R179 -> 2.00 | G179: UN | H179: 212.62 | I179: 212.62 | J179: 24.00% | K179: =ROUND(I179,2)+(ROUND(I179,2)*J179) -> 263.6488 | L179: =ROUND(S179,2) -> 527.3 | N179: 21 | O179: INSTALAÇÕES SANITÁRIAS E PLUVIAIS | P179: 2 | Q179: EDIFICAÇÃO | R179: 2.00 | S179: =ROUND(K179,2)*R179 -> 527.3
A180: Serviço | B180: 10.5 | C180: SINAPI | D180: 104329 | E180: CAIXA SIFONADA, COM GRELHA REDONDA, PVC, DN 150 X 150 X 50 MM, JUNTA SOLDÁVEL, FORNECIDA E INSTALADA EM RAMAL DE DESCARGA OU EM RAMAL DE ESGOTO SANITÁRIO. AF_08/2022 | F180: =R180 -> 11.00 | G180: UN | H180: 84.94 | I180: 84.94 | J180: 24.00% | K180: =ROUND(I180,2)+(ROUND(I180,2)*J180) -> 105.3256 | L180: =ROUND(S180,2) -> 1158.63 | N180: 21 | O180: INSTALAÇÕES SANITÁRIAS E PLUVIAIS | P180: 2 | Q180: EDIFICAÇÃO | R180: 11.00 | S180: =ROUND(K180,2)*R180 -> 1158.63
A181: Serviço | B181: 10.6 | C181: SINAPI | D181: 89709 | E181: RALO SIFONADO, PVC, DN 100 X 40 MM, JUNTA SOLDÁVEL, FORNECIDO E INSTALADO EM RAMAL DE DESCARGA OU EM RAMAL DE ESGOTO SANITÁRIO. AF_08/2022 | F181: =R181 -> 6.00 | G181: UN | H181: 22.07 | I181: 22.07 | J181: 24.00% | K181: =ROUND(I181,2)+(ROUND(I181,2)*J181) -> 27.3668 | L181: =ROUND(S181,2) -> 164.22 | N181: 21 | O181: INSTALAÇÕES SANITÁRIAS E PLUVIAIS | P181: 2 | Q181: EDIFICAÇÃO | R181: 6.00 | S181: =ROUND(K181,2)*R181 -> 164.22
A182: Serviço | B182: 10.7 | C182: SINAPI | D182: 89748 | E182: CURVA CURTA 90 GRAUS, PVC, SERIE NORMAL, ESGOTO PREDIAL, DN 100 MM, JUNTA ELÁSTICA, FORNECIDO E INSTALADO EM RAMAL DE DESCARGA OU RAMAL DE ESGOTO SANITÁRIO. AF_08/2022 | F182: =R182 -> 8.00 | G182: UN | H182: 43.05 | I182: 43.05 | J182: 24.00% | K182: =ROUND(I182,2)+(ROUND(I182,2)*J182) -> 53.382 | L182: =ROUND(S182,2) -> 427.04 | N182: 21 | O182: INSTALAÇÕES SANITÁRIAS E PLUVIAIS | P182: 2 | Q182: EDIFICAÇÃO | R182: 8.00 | S182: =ROUND(K182,2)*R182 -> 427.04
A183: Serviço | B183: 10.8 | C183: SINAPI | D183: 89728 | E183: CURVA CURTA 90 GRAUS, PVC, SERIE NORMAL, ESGOTO PREDIAL, DN 40 MM, JUNTA SOLDÁVEL, FORNECIDO E INSTALADO EM RAMAL DE DESCARGA OU RAMAL DE ESGOTO SANITÁRIO. AF_08/2022 | F183: =R183 -> 21.00 | G183: UN | H183: 13.39 | I183: 13.39 | J183: 24.00% | K183: =ROUND(I183,2)+(ROUND(I183,2)*J183) -> 16.6036 | L183: =ROUND(S183,2) -> 348.6 | N183: 21 | O183: INSTALAÇÕES SANITÁRIAS E PLUVIAIS | P183: 2 | Q183: EDIFICAÇÃO | R183: 21.00 | S183: =ROUND(K183,2)*R183 -> 348.6
A184: Serviço | B184: 10.9 | C184: SINAPI | D184: 89746 | E184: JOELHO 45 GRAUS, PVC, SERIE NORMAL, ESGOTO PREDIAL, DN 100 MM, JUNTA ELÁSTICA, FORNECIDO E INSTALADO EM RAMAL DE DESCARGA OU RAMAL DE ESGOTO SANITÁRIO. AF_08/2022 | F184: =R184 -> 2.00 | G184: UN | H184: 28.38 | I184: 28.38 | J184: 24.00% | K184: =ROUND(I184,2)+(ROUND(I184,2)*J184) -> 35.1912 | L184: =ROUND(S184,2) -> 70.38 | N184: 21 | O184: INSTALAÇÕES SANITÁRIAS E PLUVIAIS | P184: 2 | Q184: EDIFICAÇÃO | R184: 2.00 | S184: =ROUND(K184,2)*R184 -> 70.38
A185: Serviço | B185: 10.10 | C185: SINAPI | D185: 89726 | E185: JOELHO 45 GRAUS, PVC, SERIE NORMAL, ESGOTO PREDIAL, DN 40 MM, JUNTA SOLDÁVEL, FORNECIDO E INSTALADO EM RAMAL DE DESCARGA OU RAMAL DE ESGOTO SANITÁRIO. AF_08/2022 | F185: =R185 -> 21.00 | G185: UN | H185: 10.61 | I185: 10.61 | J185: 24.00% | K185: =ROUND(I185,2)+(ROUND(I185,2)*J185) -> 13.1564 | L185: =ROUND(S185,2) -> 276.36 | N185: 21 | O185: INSTALAÇÕES SANITÁRIAS E PLUVIAIS | P185: 2 | Q185: EDIFICAÇÃO | R185: 21.00 | S185: =ROUND(K185,2)*R185 -> 276.36
A186: Serviço | B186: 10.11 | C186: SINAPI | D186: 89732 | E186: JOELHO 45 GRAUS, PVC, SERIE NORMAL, ESGOTO PREDIAL, DN 50 MM, JUNTA ELÁSTICA, FORNECIDO E INSTALADO EM RAMAL DE DESCARGA OU RAMAL DE ESGOTO SANITÁRIO. AF_08/2022 | F186: =R186 -> 10.00 | G186: UN | H186: 15.51 | I186: 15.51 | J186: 24.00% | K186: =ROUND(I186,2)+(ROUND(I186,2)*J186) -> 19.2324 | L186: =ROUND(S186,2) -> 192.3 | N186: 21 | O186: INSTALAÇÕES SANITÁRIAS E PLUVIAIS | P186: 2 | Q186: EDIFICAÇÃO | R186: 10.00 | S186: =ROUND(K186,2)*R186 -> 192.3
A187: Serviço | B187: 10.12 | C187: SINAPI | D187: 89529 | E187: JOELHO 90 GRAUS, PVC, SERIE R, ÁGUA PLUVIAL, DN 100 MM, JUNTA ELÁSTICA, FORNECIDO E INSTALADO EM RAMAL DE ENCAMINHAMENTO. AF_06/2022 | F187: =R187 -> 1.00 | G187: UN | H187: 36.96 | I187: 36.96 | J187: 24.00% | K187: =ROUND(I187,2)+(ROUND(I187,2)*J187) -> 45.8304 | L187: =ROUND(S187,2) -> 45.83 | N187: 21 | O187: INSTALAÇÕES SANITÁRIAS E PLUVIAIS | P187: 2 | Q187: EDIFICAÇÃO | R187: 1.00 | S187: =ROUND(K187,2)*R187 -> 45.83
A188: Serviço | B188: 10.13 | C188: SINAPI | D188: 89731 | E188: JOELHO 90 GRAUS, PVC, SERIE NORMAL, ESGOTO PREDIAL, DN 50 MM, JUNTA ELÁSTICA, FORNECIDO E INSTALADO EM RAMAL DE DESCARGA OU RAMAL DE ESGOTO SANITÁRIO. AF_08/2022 | F188: =R188 -> 6.00 | G188: UN | H188: 14.76 | I188: 14.76 | J188: 24.00% | K188: =ROUND(I188,2)+(ROUND(I188,2)*J188) -> 18.3024 | L188: =ROUND(S188,2) -> 109.8 | N188: 21 | O188: INSTALAÇÕES SANITÁRIAS E PLUVIAIS | P188: 2 | Q188: EDIFICAÇÃO | R188: 6.00 | S188: =ROUND(K188,2)*R188 -> 109.8
A189: Serviço | B189: 10.14 | C189: SINAPI | D189: 89724 | E189: JOELHO 90 GRAUS, PVC, SERIE NORMAL, ESGOTO PREDIAL, DN 40 MM, JUNTA SOLDÁVEL, FORNECIDO E INSTALADO EM RAMAL DE DESCARGA OU RAMAL DE ESGOTO SANITÁRIO. AF_08/2022 | F189: =R189 -> 15.00 | G189: UN | H189: 10.37 | I189: 10.37 | J189: 24.00% | K189: =ROUND(I189,2)+(ROUND(I189,2)*J189) -> 12.8588 | L189: =ROUND(S189,2) -> 192.9 | N189: 21 | O189: INSTALAÇÕES SANITÁRIAS E PLUVIAIS | P189: 2 | Q189: EDIFICAÇÃO | R189: 15.00 | S189: =ROUND(K189,2)*R189 -> 192.9
A190: Serviço | B190: 10.15 | C190: SINAPI | D190: 104345 | E190: JUNÇÃO DE REDUÇÃO INVERTIDA, PVC, SÉRIE NORMAL, ESGOTO PREDIAL, DN 100 X 50 MM, JUNTA ELÁSTICA, FORNECIDO E INSTALADO EM RAMAL DE DESCARGA OU RAMAL DE ESGOTO SANITÁRIO. AF_08/2022 | F190: =R190 -> 8.00 | G190: UN | H190: 43.06 | I190: 43.06 | J190: 24.00% | K190: =ROUND(I190,2)+(ROUND(I190,2)*J190) -> 53.3944 | L190: =ROUND(S190,2) -> 427.12 | N190: 21 | O190: INSTALAÇÕES SANITÁRIAS E PLUVIAIS | P190: 2 | Q190: EDIFICAÇÃO | R190: 8.00 | S190: =ROUND(K190,2)*R190 -> 427.12
A191: Serviço | B191: 10.16 | C191: SINAPI | D191: 89795 | E191: JUNÇÃO SIMPLES, PVC, SERIE NORMAL, ESGOTO PREDIAL, DN 75 X 75 MM, JUNTA ELÁSTICA, FORNECIDO E INSTALADO EM RAMAL DE DESCARGA OU RAMAL DE ESGOTO SANITÁRIO. AF_08/2022 | F191: =R191 -> 1.00 | G191: UN | H191: 40.96 | I191: 40.96 | J191: 24.00% | K191: =ROUND(I191,2)+(ROUND(I191,2)*J191) -> 50.7904 | L191: =ROUND(S191,2) -> 50.79 | N191: 21 | O191: INSTALAÇÕES SANITÁRIAS E PLUVIAIS | P191: 2 | Q191: EDIFICAÇÃO | R191: 1.00 | S191: =ROUND(K191,2)*R191 -> 50.79
A192: Serviço | B192: 10.17 | C192: SINAPI | D192: 89752 | E192: LUVA SIMPLES, PVC, SERIE NORMAL, ESGOTO PREDIAL, DN 40 MM, JUNTA SOLDÁVEL, FORNECIDO E INSTALADO EM RAMAL DE DESCARGA OU RAMAL DE ESGOTO SANITÁRIO. AF_08/2022 | F192: =R192 -> 6.00 | G192: UN | H192: 7.8 | I192: 7.8 | J192: 24.00% | K192: =ROUND(I192,2)+(ROUND(I192,2)*J192) -> 9.672 | L192: =ROUND(S192,2) -> 58.02 | N192: 21 | O192: INSTALAÇÕES SANITÁRIAS E PLUVIAIS | P192: 2 | Q192: EDIFICAÇÃO | R192: 6.00 | S192: =ROUND(K192,2)*R192 -> 58.02
A193: Serviço | B193: 10.18 | C193: SINAPI | D193: 89778 | E193: LUVA SIMPLES, PVC, SERIE NORMAL, ESGOTO PREDIAL, DN 100 MM, JUNTA ELÁSTICA, FORNECIDO E INSTALADO EM RAMAL DE DESCARGA OU RAMAL DE ESGOTO SANITÁRIO. AF_08/2022 | F193: =R193 -> 30.00 | G193: UN | H193: 18.32 | I193: 18.32 | J193: 24.00% | K193: =ROUND(I193,2)+(ROUND(I193,2)*J193) -> 22.7168 | L193: =ROUND(S193,2) -> 681.6 | N193: 21 | O193: INSTALAÇÕES SANITÁRIAS E PLUVIAIS | P193: 2 | Q193: EDIFICAÇÃO | R193: 30.00 | S193: =ROUND(K193,2)*R193 -> 681.6
A194: Serviço | B194: 10.19 | C194: SINAPI | D194: 89753 | E194: LUVA SIMPLES, PVC, SERIE NORMAL, ESGOTO PREDIAL, DN 50 MM, JUNTA ELÁSTICA, FORNECIDO E INSTALADO EM RAMAL DE DESCARGA OU RAMAL DE ESGOTO SANITÁRIO. AF_08/2022 | F194: =R194 -> 7.00 | G194: UN | H194: 9.47 | I194: 9.47 | J194: 24.00% | K194: =ROUND(I194,2)+(ROUND(I194,2)*J194) -> 11.7428 | L194: =ROUND(S194,2) -> 82.18 | N194: 21 | O194: INSTALAÇÕES SANITÁRIAS E PLUVIAIS | P194: 2 | Q194: EDIFICAÇÃO | R194: 7.00 | S194: =ROUND(K194,2)*R194 -> 82.18
A195: Serviço | B195: 10.20 | C195: SINAPI | D195: 89774 | E195: LUVA SIMPLES, PVC, SERIE NORMAL, ESGOTO PREDIAL, DN 75 MM, JUNTA ELÁSTICA, FORNECIDO E INSTALADO EM RAMAL DE DESCARGA OU RAMAL DE ESGOTO SANITÁRIO. AF_08/2022 | F195: =R195 -> 3.00 | G195: UN | H195: 15.92 | I195: 15.92 | J195: 24.00% | K195: =ROUND(I195,2)+(ROUND(I195,2)*J195) -> 19.7408 | L195: =ROUND(S195,2) -> 59.22 | N195: 21 | O195: INSTALAÇÕES SANITÁRIAS E PLUVIAIS | P195: 2 | Q195: EDIFICAÇÃO | R195: 3.00 | S195: =ROUND(K195,2)*R195 -> 59.22
A196: Serviço | B196: 10.21 | C196: SINAPI | D196: 104343 | E196: JUNÇÃO DE REDUÇÃO INVERTIDA, PVC, SÉRIE NORMAL, ESGOTO PREDIAL, DN 75 X 50 MM, JUNTA ELÁSTICA, FORNECIDO E INSTALADO EM RAMAL DE DESCARGA OU RAMAL DE ESGOTO SANITÁRIO. AF_08/2022 | F196: =R196 -> 1.00 | G196: UN | H196: 33.97 | I196: 33.97 | J196: 24.00% | K196: =ROUND(I196,2)+(ROUND(I196,2)*J196) -> 42.1228 | L196: =ROUND(S196,2) -> 42.12 | N196: 21 | O196: INSTALAÇÕES SANITÁRIAS E PLUVIAIS | P196: 2 | Q196: EDIFICAÇÃO | R196: 1.00 | S196: =ROUND(K196,2)*R196 -> 42.12
A197: Serviço | B197: 10.22 | C197: SINAPI | D197: 89714 | E197: TUBO PVC, SERIE NORMAL, ESGOTO PREDIAL, DN 100 MM, FORNECIDO E INSTALADO EM RAMAL DE DESCARGA OU RAMAL DE ESGOTO SANITÁRIO. AF_08/2022 | F197: =R197 -> 62.83 | G197: M | H197: 37.72 | I197: 37.72 | J197: 24.00% | K197: =ROUND(I197,2)+(ROUND(I197,2)*J197) -> 46.7728 | L197: =ROUND(S197,2) -> 2938.56 | N197: 21 | O197: INSTALAÇÕES SANITÁRIAS E PLUVIAIS | P197: 2 | Q197: EDIFICAÇÃO | R197: 62.83 | S197: =ROUND(K197,2)*R197 -> 2938.5591
A198: Serviço | B198: 10.23 | C198: SINAPI | D198: 89849 | E198: TUBO PVC, SERIE NORMAL, ESGOTO PREDIAL, DN 150 MM, FORNECIDO E INSTALADO EM SUBCOLETOR AÉREO DE ESGOTO SANITÁRIO. AF_08/2022 | F198: =R198 -> 1.50 | G198: M | H198: 57.56 | I198: 57.56 | J198: 24.00% | K198: =ROUND(I198,2)+(ROUND(I198,2)*J198) -> 71.3744 | L198: =ROUND(S198,2) -> 107.06 | N198: 21 | O198: INSTALAÇÕES SANITÁRIAS E PLUVIAIS | P198: 2 | Q198: EDIFICAÇÃO | R198: 1.50 | S198: =ROUND(K198,2)*R198 -> 107.055
A199: Serviço | B199: 10.24 | C199: SINAPI | D199: 89711 | E199: TUBO PVC, SERIE NORMAL, ESGOTO PREDIAL, DN 40 MM, FORNECIDO E INSTALADO EM RAMAL DE DESCARGA OU RAMAL DE ESGOTO SANITÁRIO. AF_08/2022 | F199: =R199 -> 34.04 | G199: M | H199: 21.27 | I199: 21.27 | J199: 24.00% | K199: =ROUND(I199,2)+(ROUND(I199,2)*J199) -> 26.3748 | L199: =ROUND(S199,2) -> 897.63 | N199: 21 | O199: INSTALAÇÕES SANITÁRIAS E PLUVIAIS | P199: 2 | Q199: EDIFICAÇÃO | R199: 34.04 | S199: =ROUND(K199,2)*R199 -> 897.6348
A200: Serviço | B200: 10.25 | C200: SINAPI | D200: 89712 | E200: TUBO PVC, SERIE NORMAL, ESGOTO PREDIAL, DN 50 MM, FORNECIDO E INSTALADO EM RAMAL DE DESCARGA OU RAMAL DE ESGOTO SANITÁRIO. AF_08/2022 | F200: =R200 -> 17.03 | G200: M | H200: 27.1 | I200: 27.1 | J200: 24.00% | K200: =ROUND(I200,2)+(ROUND(I200,2)*J200) -> 33.604 | L200: =ROUND(S200,2) -> 572.21 | N200: 21 | O200: INSTALAÇÕES SANITÁRIAS E PLUVIAIS | P200: 2 | Q200: EDIFICAÇÃO | R200: 17.03 | S200: =ROUND(K200,2)*R200 -> 572.208
... 63 more rows

Sheet CFF - PLE
A1: N° do Evento | B1: Título do Evento | C1: N° da Frente de Obra | D1: Frente de Obra | E1: N° do Período de Conclusão do Evento
A2: 1 | B2: ADMINISTRAÇÃO LOCAL | C2: 1 | D2: SERVIÇOS PRELIMINARES | E2: 1
C3: 2 | D3: EDIFICAÇÃO | E3: 2
C4: 3 | D4: IMPLANTAÇÃO | E4: 3
C5: 4 | D5: FUNDAÇÕES | E5: 4
C6: 5 | D6: VIGAS BALDRAME | E6: 5
C7: 6 | D7: PILARES | E7: 6
C8: 7 | D8: VIGAS | E8: 7
C9: 8 | D9: LAJES | E9: 8
C10: 9 | D10: REVESTIMENTOS INTERNOS | E10: 9
C11: 10 | D11: REVESTIMENTOS EXTERNOS | E11: 10
C12: 11 | D12: PINTURA INTERNA | E12: 11
C13: 12 | D13: PINTURA EXTERNA | E13: 12
A14: 2 | B14: CANTEIRO DE OBRA | C14: 1 | D14: SERVIÇOS PRELIMINARES | E14: 1
C15: 2 | D15: EDIFICAÇÃO | E15: 2
C16: 3 | D16: IMPLANTAÇÃO | E16: 3
C17: 4 | D17: FUNDAÇÕES | E17: 4
C18: 5 | D18: VIGAS BALDRAME | E18: 5
C19: 6 | D19: PILARES | E19: 6
C20: 7 | D20: VIGAS | E20: 7
C21: 8 | D21: LAJES | E21: 8
C22: 9 | D22: REVESTIMENTOS INTERNOS | E22: 9
C23: 10 | D23: REVESTIMENTOS EXTERNOS | E23: 10
C24: 11 | D24: PINTURA INTERNA | E24: 11
C25: 12 | D25: PINTURA EXTERNA | E25: 12
A26: 3 | B26: MOVIMENTAÇÃO DE SOLOS | C26: 1 | D26: SERVIÇOS PRELIMINARES | E26: 1
C27: 4 | D27: FUNDAÇÕES | E27: 2
C28: 5 | D28: VIGAS BALDRAME | E28: 3
A29: 4 | B29: ESTACAS | C29: 4 | D29: FUNDAÇÕES | E29: 2
A30: 8 | B30: CONCRETAGENS | C30: 4 | D30: FUNDAÇÕES | E30: 3
C31: 5 | D31: VIGAS BALDRAME | E31: 3
C32: 6 | D32: PILARES | E32: 4
C33: 7 | D33: VIGAS | E33: 5
C34: 8 | D34: LAJES | E34: 5
A35: 7 | B35: FÔRMAS | C35: 4 | D35: FUNDAÇÕES | E35: 3
C36: 5 | D36: VIGAS BALDRAME | E36: 3
C37: 6 | D37: PILARES | E37: 4
C38: 7 | D38: VIGAS | E38: 5
C39: 8 | D39: LAJES | E39: 5
A40: 6 | B40: ARMAÇÕES | C40: 4 | D40: FUNDAÇÕES | E40: 2
C41: 5 | D41: VIGAS BALDRAME | E41: 3
C42: 6 | D42: PILARES | E42: 4
C43: 7 | D43: VIGAS | E43: 5
C44: 8 | D44: LAJES | E44: 5
A45: 5 | B45: IMPERMEABILIZAÇÕES | C45: 5 | D45: VIGAS BALDRAME | E45: 3
A46: 11 | B46: ESTRUTURA METÁLICA DE COBERTURA | C46: 2 | D46: EDIFICAÇÃO | E46: 7
A47: 12 | B47: TELHAMENTO - RUFOS E CALHAS | C47: 2 | D47: EDIFICAÇÃO | E47: 8
A48: 9 | B48: ALVENARIA DE BLOCOS CERÂMICOS | C48: 2 | D48: EDIFICAÇÃO | E48: 6
A49: 10 | B49: CONTRAMARCOS | C49: 2 | D49: EDIFICAÇÃO | E49: 6
A50: 13 | B50: CONDUTORES ELÉTRICOS | C50: 2 | D50: EDIFICAÇÃO | E50: 8
A51: 14 | B51: DISJUNTORES | C51: 2 | D51: EDIFICAÇÃO | E51: 8
A52: 15 | B52: ELETRODUTOS E CAIXAS | C52: 2 | D52: EDIFICAÇÃO | E52: 7
A53: 16 | B53: QUADROS E DISPOSITIVOS ELÉTRICOS | C53: 2 | D53: EDIFICAÇÃO | E53: 8
A54: 17 | B54: LUMINÁRIAS | C54: 2 | D54: EDIFICAÇÃO | E54: 9
A55: 18 | B55: HIDRÁULICA - TÉRREO | C55: 2 | D55: EDIFICAÇÃO | E55: 7
A56: 20 | B56: HIDRÁULICA - ALIMENTAÇÃO | C56: 2 | D56: EDIFICAÇÃO | E56: 7
A57: 19 | B57: HIDRÁULICA - COBERTURA | C57: 2 | D57: EDIFICAÇÃO | E57: 8
A58: 21 | B58: INSTALAÇÕES SANITÁRIAS E PLUVIAIS | C58: 2 | D58: EDIFICAÇÃO | E58: 7
A59: 22 | B59: ESQUADRIAS | C59: 2 | D59: EDIFICAÇÃO | E59: 10
A60: 23 | B60: PISOS - COMPACTAÇÃO | C60: 2 | D60: EDIFICAÇÃO | E60: 6
C61: 3 | D61: IMPLANTAÇÃO | E61: 6
A62: 25 | B62: PISOS - GRANILITE | C62: 2 | D62: EDIFICAÇÃO | E62: 7
A63: 24 | B63: PISOS - CONCRETO | C63: 3 | D63: IMPLANTAÇÃO | E63: 6
A64: 26 | B64: CHAPISCO | C64: 9 | D64: REVESTIMENTOS INTERNOS | E64: 8
C65: 10 | D65: REVESTIMENTOS EXTERNOS | E65: 8
A66: 27 | B66: MASSA ÚNICA | C66: 9 | D66: REVESTIMENTOS INTERNOS | E66: 8
C67: 10 | D67: REVESTIMENTOS EXTERNOS | E67: 8
A68: 28 | B68: REVESTIMENTO CERÂMICO | C68: 9 | D68: REVESTIMENTOS INTERNOS | E68: 9
A69: 29 | B69: FORRO PVC | C69: 2 | D69: EDIFICAÇÃO | E69: 9
A70: 30 | B70: MASSA LÁTEX | C70: 11 | D70: PINTURA INTERNA | E70: 9
C71: 12 | D71: PINTURA EXTERNA | E71: 9
A72: 31 | B72: PINTURA LÁTEX ACRÍLICA | C72: 3 | D72: IMPLANTAÇÃO | E72: 10
C73: 11 | D73: PINTURA INTERNA | E73: 10
C74: 12 | D74: PINTURA EXTERNA | E74: 10
A75: 32 | B75: SELADOR ACRÍLICO | C75: 12 | D75: PINTURA EXTERNA | E75: 10
A76: 33 | B76: LOUÇAS | C76: 2 | D76: EDIFICAÇÃO | E76: 10
A77: 34 | B77: METAIS | C77: 2 | D77: EDIFICAÇÃO | E77: 11
A78: 35 | B78: BANCADAS E PEDRAS | C78: 2 | D78: EDIFICAÇÃO | E78: 10
A79: 36 | B79: PPCI | C79: 2 | D79: EDIFICAÇÃO | E79: 11
A80: 37 | B80: PAISAGISMO | C80: 3 | D80: IMPLANTAÇÃO | E80: 12
A81: 38 | B81: SERVIÇOS COMPLEMENTARES | C81: 2 | D81: EDIFICAÇÃO | E81: 12
